{"text_format":"1","workbook":"xlsx","n_sheets":10,"sheets":["1. Info","2. Table of Contents","3. Rate Classes","4. RRR Data","5. UTRs and Sub-Transmission","6. Historical Wholesale","7. Current Wholesale","8. Forecast Wholesale","9. RTSR Rates to Forecast","hidden1"],"not_rendered":{"charts":0,"images":3,"macros":1,"external_links":2,"defined_names":17,"comments":0,"pivot_tables":0},"unopened":[],"bounds":{"document_bytes":16777216,"sheet_cells":100000,"rows_first":2000,"rows_last":500,"rows_between":2000,"halvings":0,"cell_chars":16384,"cell_head_chars":4096},"cells_cut":0,"cells_raw":0,"read":"whole","date_system":"1900"}

{"sheet":"1. Info","index":0,"n_rows":75,"n_cols":28,"rows_kept":75,"cut":false,"hidden":false,"merged":[[24,3,24,4],[20,3,20,4],[1,2,1,9],[2,2,2,9],[3,2,3,9],[4,2,4,9],[14,3,14,4],[16,3,16,4]]}
[null,null,null,null,null,null,null,null,null,null,null,null,null,null,null,null,null,null,null,null,null,null,null,null,null,null,null,"Alectra Utilities Corporation - Enersource Hydro"]
[null,null,null,null,null,null,null,null,null,null,null,null,null,null,null,null,null,null,null,null,null,null,null,null,null,null,null,"Alectra Utilities Corporation - Horizon Utilities"]
[null,null,null,null,null,null,null,null,null,null,null,null,null,null,null,null,null,null,null,null,null,null,null,null,null,null,null,"Alectra Utilities Corporation - Hydro One Brampton "]
[null,null,null,null,null,null,null,null,null,null,null,null,null,null,null,null,null,null,null,null,null,null,null,null,null,null,null,"Alectra Utilities Corporation - PowerStream Inc."]
[null,null,null,null,null,null,null,null,null,null,null,null,null,null,null,null,null,null,null,null,null,null,null,null,null,null,null,"Algoma Power Inc."]
[null,null,null,null,null,null,null,null,null,null,null,null,null,null,null,null,null,null,null,null,null,null,null,null,null,null,null,"Atikokan Hydro Inc."]
[null,null,null,null,null,null,null,null,null,null,null,null,null,null,null,null,null,null,null,null,null,null,null,null,null,null,null,"Attawapiskat Power Corp. "]
[null,null,null,null,null,null,null,null,null,null,null,null,null,null,null,null,null,null,null,null,null,null,null,null,null,null,null,"Bluewater Power Distribution Corporation"]
[null,null,null,null,null,null,null,null,null,null,null,null,null,null,null,null,null,null,null,null,null,null,null,null,null,null,null,"Brantford Power Inc."]
[null,null,null,null,null,null,null,null,null,null,null,null,null,null,null,null,null,null,null,null,null,null,null,null,null,null,null,"Burlington Hydro Inc."]
[null,null,null,null,null,null,null,null,null,null,null,null,null,null,null,null,null,null,null,null,null,null,null,null,null,null,null,"Canadian Niagara Power Inc."]
[null,null,null,null,null,null,null,null,null,null,null,null,null,null,null,null,null,null,null,null,null,null,null,null,null,null,null,"Centre Wellington Hydro Ltd."]
["Drop-down lists are shaded blue; Input cells are shaded green.",null,null,null,null,null,null,null,null,null,null,null,null,null,null,null,null,null,null,null,null,null,null,null,null,null,null,"Chapleau Public Utilities Corporation"]
[null,null,null,null,null,null,null,null,null,null,null,null,null,null,null,null,null,null,null,null,null,null,null,null,null,null,null,"COLLUS PowerStream Corporation"]
[null,null,"Utility Name   ","Niagara-on-the-Lake Hydro Inc.",null,null,null,null,null,null,null,null,null,null,null,null,null,null,null,null,null,null,null,null,null,null,null,"Cooperative Hydro Embrun Inc."]
[null,null,null,null,null,null,null,null,null,null,null,null,null,null,null,null,null,null,null,null,null,null,null,null,null,null,null,"E.L.K. Energy Inc."]
[null,null,"Service Territory","Niagara-on-the-Lake",null,null,null,null,null,null,null,null,null,null,null,null,null,null,null,null,null,null,null,null,null,null,null,"Energy + Inc."]
[null,null,null,null,null,null,null,null,null,null,null,null,null,null,null,null,null,null,null,null,null,null,null,null,null,null,null,"Entegrus Powerlines Inc."]
[null,null,"Assigned EB Number","EB-2018-0056",null,null,null,null,null,null,null,null,null,null,null,null,null,null,null,null,null,null,null,null,null,null,null,"ENWIN Utilities Ltd."]
[null,null,null,null,null,null,null,null,null,null,null,null,null,null,null,null,null,null,null,null,null,null,null,null,null,null,null,"Erie Thames Powerlines Corporation"]
[null,null,"Name and Title","Jeff Klassen, VP Finance",null,null,null,null,null,null,null,null,null,null,null,null,null,null,null,null,null,null,null,null,null,null,null,"Espanola Regional Hydro Distribution Corporation"]
[null,null,null,null,null,null,null,null,null,null,null,null,null,null,null,null,null,null,null,null,null,null,null,null,null,null,null,"Essex Powerlines Corporation"]
[null,null,"Phone Number","905-468-4235 ext 380",null,null,null,null,null,null,null,null,null,null,null,null,null,null,null,null,null,null,null,null,null,null,null,"Festival Hydro Inc."]
[null,null,null,null,null,null,null,null,null,null,null,null,null,null,null,null,null,null,null,null,null,null,null,null,null,null,null,"Fort Albany Power Corporation"]
[null,null,"Email Address","jklassen@notlhydro.com",null,null,null,null,null,null,null,null,null,null,null,null,null,null,null,null,null,null,null,null,null,null,null,"Fort Frances Power Corporation"]
[null,null,null,null,null,null,null,null,null,null,null,null,null,null,null,null,null,null,null,null,null,null,null,null,null,null,null,"Greater Sudbury Hydro Inc."]
[null,null,"Date","2018-07-13",null,null,null,null,null,null,null,null,null,null,null,null,null,null,null,null,null,null,null,null,null,null,null,"Grimsby Power Inc."]
[null,null,null,null,null,null,null,null,null,null,null,null,null,null,null,null,null,null,null,null,null,null,null,null,null,null,null,"Guelph Hydro Electric Systems Inc."]
[null,null,"Last COS Re-based Year",2014,null,null,null,null,null,null,null,null,null,null,null,null,null,null,null,null,null,null,null,null,null,null,null,"Halton Hills Hydro Inc."]
[null,null,null,null,null,null,null,null,null,null,null,null,null,null,null,null,null,null,null,null,null,null,null,null,null,null,null,"Hearst Power Distribution Company Limited"]
[null,null,null,null,null,null,null,null,null,null,null,null,null,null,null,null,null,null,null,null,null,null,null,null,null,null,null,"Hydro 2000 Inc."]
[null,null,null,null,null,null,null,null,null,null,null,null,null,null,null,null,null,null,null,null,null,null,null,null,null,null,null,"Hydro Hawkesbury Inc."]
[null,null,null,null,null,null,null,null,null,null,null,null,null,null,null,null,null,null,null,null,null,null,null,null,null,null,null,"Hydro One Networks Inc."]
[null,null,null,null,null,null,null,null,null,null,null,null,null,null,null,null,null,null,null,null,null,null,null,null,null,null,null,"Hydro One Networks Inc. - Haldimand County Hydro"]
[null,null,null,null,null,null,null,null,null,null,null,null,null,null,null,null,null,null,null,null,null,null,null,null,null,null,null,"Hydro One Networks Inc. - Norfolk Hydro"]
[null,null,null,null,null,null,null,null,null,null,null,null,null,null,null,null,null,null,null,null,null,null,null,null,null,null,null,"Hydro One Networks Inc. - Woodstock Hydro"]
[null,null,null,null,null,null,null,null,null,null,null,null,null,null,null,null,null,null,null,null,null,null,null,null,null,null,null,"Hydro One Remote Communities Inc."]
[null,null,null,null,null,null,null,null,null,null,null,null,null,null,null,null,null,null,null,null,null,null,null,null,null,null,null,"Hydro Ottawa Limited"]
[null,null,null,null,null,null,null,null,null,null,null,null,null,null,null,null,null,null,null,null,null,null,null,null,null,null,null,"Innpower Corporation"]
[null,null,null,null,null,null,null,null,null,null,null,null,null,null,null,null,null,null,null,null,null,null,null,null,null,null,null,"Kashechewan Power Corporation"]
[null,null,null,null,null,null,null,null,null,null,null,null,null,null,null,null,null,null,null,null,null,null,null,null,null,null,null,"Kenora Hydro Electric Corporation Ltd."]
[null,null,null,null,null,null,null,null,null,null,null,null,null,null,null,null,null,null,null,null,null,null,null,null,null,null,null,"Kingston Hydro Corporation"]
[null,null,null,null,null,null,null,null,null,null,null,null,null,null,null,null,null,null,null,null,null,null,null,null,null,null,null,"Kitchener-Wilmot Hydro Inc."]
[null,null,null,null,null,null,null,null,null,null,null,null,null,null,null,null,null,null,null,null,null,null,null,null,null,null,null,"Lakefront Utilities Inc."]
[null,null,null,null,null,null,null,null,null,null,null,null,null,null,null,null,null,null,null,null,null,null,null,null,null,null,null,"Lakeland Power Distribution Ltd."]
[null,null,null,null,null,null,null,null,null,null,null,null,null,null,null,null,null,null,null,null,null,null,null,null,null,null,null,"London Hydro Inc."]
[null,null,null,null,null,null,null,null,null,null,null,null,null,null,null,null,null,null,null,null,null,null,null,null,null,null,null,"Midland Power Utility Corporation"]
[null,null,null,null,null,null,null,null,null,null,null,null,null,null,null,null,null,null,null,null,null,null,null,null,null,null,null,"Milton Hydro Distribution inc."]
[null,null,null,null,null,null,null,null,null,null,null,null,null,null,null,null,null,null,null,null,null,null,null,null,null,null,null,"Newmarket - Tay Power Distribution Ltd."]
[null,null,null,null,null,null,null,null,null,null,null,null,null,null,null,null,null,null,null,null,null,null,null,null,null,null,null,"Niagara Peninsula Energy Inc."]
[null,null,null,null,null,null,null,null,null,null,null,null,null,null,null,null,null,null,null,null,null,null,null,null,null,null,null,"Niagara-on-the-Lake Hydro Inc."]
[null,null,null,null,null,null,null,null,null,null,null,null,null,null,null,null,null,null,null,null,null,null,null,null,null,null,null,"North Bay Hydro Distribution Limited"]
[null,null,null,null,null,null,null,null,null,null,null,null,null,null,null,null,null,null,null,null,null,null,null,null,null,null,null,"Northern Ontario Wires Inc."]
[null,null,null,null,null,null,null,null,null,null,null,null,null,null,null,null,null,null,null,null,null,null,null,null,null,null,null,"Oakville Hydro Electricity Distribution Inc."]
[null,null,null,null,null,null,null,null,null,null,null,null,null,null,null,null,null,null,null,null,null,null,null,null,null,null,null,"Orangeville Hydro Limited"]
[null,null,null,null,null,null,null,null,null,null,null,null,null,null,null,null,null,null,null,null,null,null,null,null,null,null,null,"Orillia Power Distribution Corporation"]
[null,null,null,null,null,null,null,null,null,null,null,null,null,null,null,null,null,null,null,null,null,null,null,null,null,null,null,"Oshawa PUC Networks Inc."]
[null,null,null,null,null,null,null,null,null,null,null,null,null,null,null,null,null,null,null,null,null,null,null,null,null,null,null,"Ottawa River Power Corporation"]
[null,null,null,null,null,null,null,null,null,null,null,null,null,null,null,null,null,null,null,null,null,null,null,null,null,null,null,"Peterborough Distribution Incorporated"]
[null,null,null,null,null,null,null,null,null,null,null,null,null,null,null,null,null,null,null,null,null,null,null,null,null,null,null,"PUC Distribution Inc."]
[null,null,null,null,null,null,null,null,null,null,null,null,null,null,null,null,null,null,null,null,null,null,null,null,null,null,null,"Renfrew Hydro Inc."]
[null,null,null,null,null,null,null,null,null,null,null,null,null,null,null,null,null,null,null,null,null,null,null,null,null,null,null,"Rideau St. Lawrence Distribution Inc."]
[null,null,null,null,null,null,null,null,null,null,null,null,null,null,null,null,null,null,null,null,null,null,null,null,null,null,null,"Sioux Lookout Hydro Inc."]
[null,null,null,null,null,null,null,null,null,null,null,null,null,null,null,null,null,null,null,null,null,null,null,null,null,null,null,"St. Thomas Energy Inc."]
[null,null,null,null,null,null,null,null,null,null,null,null,null,null,null,null,null,null,null,null,null,null,null,null,null,null,null,"Thunder Bay Hydro Electricity Distribution Inc."]
[null,null,null,null,null,null,null,null,null,null,null,null,null,null,null,null,null,null,null,null,null,null,null,null,null,null,null,"Tillsonburg Hydro Inc."]
[null,null,null,null,null,null,null,null,null,null,null,null,null,null,null,null,null,null,null,null,null,null,null,null,null,null,null,"Toronto Hydro-Electric System Limited"]
[null,null,null,null,null,null,null,null,null,null,null,null,null,null,null,null,null,null,null,null,null,null,null,null,null,null,null,"Veridian Connections Inc."]
[null,null,null,null,null,null,null,null,null,null,null,null,null,null,null,null,null,null,null,null,null,null,null,null,null,null,null,"Wasaga Distribution Inc."]
[null,null,null,null,null,null,null,null,null,null,null,null,null,null,null,null,null,null,null,null,null,null,null,null,null,null,null,"Waterloo North Hydro Inc."]
[null,null,null,null,null,null,null,null,null,null,null,null,null,null,null,null,null,null,null,null,null,null,null,null,null,null,null,"Welland Hydro Electric System Corp."]
[null,null,null,null,null,null,null,null,null,null,null,null,null,null,null,null,null,null,null,null,null,null,null,null,null,null,null,"Wellington North Power Inc."]
[null,null,null,null,null,null,null,null,null,null,null,null,null,null,null,null,null,null,null,null,null,null,null,null,null,null,null,"West Coast Huron Energy Inc."]
[null,null,null,null,null,null,null,null,null,null,null,null,null,null,null,null,null,null,null,null,null,null,null,null,null,null,null,"Westario Power Inc."]
[null,null,null,null,null,null,null,null,null,null,null,null,null,null,null,null,null,null,null,null,null,null,null,null,null,null,null,"Whitby Hydro Electric Corporation"]

{"sheet":"2. Table of Contents","index":1,"n_rows":28,"n_cols":9,"rows_kept":28,"cut":false,"hidden":false,"merged":[]}
[]
[]
[]
[]
[]
[]
[]
[]
[]
[]
[]
[]
[]
[]
[]
[]
[]
[]
[]
[null,null,null,"1. Info",null,null,null,null,"6. Historical Wholesale"]
[]
[null,null,null,"2. Table of Contents",null,null,null,null,"7. Current Wholesale"]
[]
[null,null,null,"3. Rate Classes",null,null,null,null,"8. Forecast Wholesale"]
[]
[null,null,null,"4. RRR Data",null,null,null,null,"9. RTSR Rates to Forecast"]
[]
[null,null,null,"5. UTRs and Sub-Transmission"]

{"sheet":"3. Rate Classes","index":2,"n_rows":100,"n_cols":23,"rows_kept":100,"cut":false,"hidden":false,"merged":[[12,2,12,8]]}
[]
[]
[]
[]
[]
[]
[]
[]
[]
[]
[]
[]
[null,null,"1.  Select the appropriate rate classes that appear on your most recent Board-Approved Tariff of Rates and Charges.\n2.  Enter the RTS Network and Connection Rate as it appears on the Tariff of Rates and Charges"]
[]
[null,null,"Rate Class",null,"Unit",null,"RTSR-Network",null,"RTSR-Connection"]
[]
[null,null,"Residential",null,"kWh",null,7.1000000000000004E-3,null,1.6999999999999999E-3,null,null,{"$f":"IF(OR(ISBLANK(C17), ISERROR(FIND(\"Choose\", C17))=FALSE), 0, 1)","v":1},{"$f":"\"C\" & ROW(C17)","v":"C17"},{"$f":"IF(OR(C17=\"General Service Intermediate Rate Class 1,000 To 4,999 kW (formerly General Service > 50 kW Customers)\", C17=\"General Service Intermediate Rate Class 1,000 To 4,999 kW (formerly Large Use Customers)\"), \"x\", \"\")","v":""},null,null,null,null,null,null,null,null,"Choose Rate Class"]
[null,null,"General Service Less Than 50 kW",null,"kWh",null,6.4999999999999997E-3,null,1.6999999999999999E-3,null,null,1,"C18",{"$f":"IF(OR(C18=\"General Service Intermediate Rate Class 1,000 To 4,999 kW (formerly General Service > 50 kW Customers)\", C18=\"General Service Intermediate Rate Class 1,000 To 4,999 kW (formerly Large Use Customers)\"), \"x\", \"\")","v":""},null,null,null,null,null,null,null,null,"Residential"]
[null,null,"General Service 50 to 4,999 kW",null,"kW",null,2.641,null,0.56410000000000005,null,null,1,"C19","",null,null,null,null,null,null,null,null,"Residential Regular"]
[null,null,"General Service 50 to 4,999 kW – Interval Metered",null,"kW",null,2.8542999999999998,null,1.3567,null,null,1,"C20","",null,null,null,null,null,null,null,null,"Residential Urban"]
[null,null,"Unmetered Scattered Load",null,"kWh",null,6.4999999999999997E-3,null,1.6999999999999999E-3,null,null,1,"C21","",null,null,null,null,null,null,null,null,"Residential Urban Year-Round"]
[null,null,"Street Lighting",null,"kW",null,1.9914000000000001,null,0.43609999999999999,null,null,1,"C22","",null,null,null,null,null,null,null,null,"Residential Suburban"]
[null,null,"Choose Rate Class",null,null,null,null,null,null,null,null,0,"C23","",null,null,null,null,null,null,null,null,"Residential Suburban Seasonal"]
[null,null,"Choose Rate Class",null,null,null,null,null,null,null,null,0,"C24","",null,null,null,null,null,null,null,null,"Residential Suburban Year Round"]
[null,null,"Choose Rate Class",null,null,null,null,null,null,null,null,0,"C25","",null,null,null,null,null,null,null,null,"Residential - Time of Use"]
[null,null,"Choose Rate Class",null,null,null,null,null,null,null,null,0,"C26","",null,null,null,null,null,null,null,null,"Residential - Hensall"]
[null,null,"Choose Rate Class",null,null,null,null,null,null,null,null,0,"C27","",null,null,null,null,null,null,null,null,"Residential – High Density [R1]"]
[null,null,"Choose Rate Class",null,null,null,null,null,null,null,null,0,"C28","",null,null,null,null,null,null,null,null,"Residential – Normal Density [R2]"]
[null,null,"Choose Rate Class",null,null,null,null,null,null,null,null,0,"C29","",null,null,null,null,null,null,null,null,"Seasonal Residential – High Density [R3]"]
[null,null,"Choose Rate Class",null,null,null,null,null,null,null,null,0,"C30","",null,null,null,null,null,null,null,null,"Seasonal Residential – Normal Density [R4]"]
[null,null,"Choose Rate Class",null,null,null,null,null,null,null,null,0,"C31","",null,null,null,null,null,null,null,null,"Residential – Urban [UR]"]
[null,null,"Choose Rate Class",null,null,null,null,null,null,null,null,0,"C32","",null,null,null,null,null,null,null,null,"General Service Less Than 50 kW"]
[null,null,"Choose Rate Class",null,null,null,null,null,null,null,null,0,"C33","",null,null,null,null,null,null,null,null,"General Service Less Than 50 kW – Single Phase energy-billed [G1]"]
[null,null,"Choose Rate Class",null,null,null,null,null,null,null,null,0,"C34","",null,null,null,null,null,null,null,null,"General Service Less Than 50 kW – Three Phase energy-billed [G3]"]
[null,null,"Choose Rate Class",null,null,null,null,null,null,null,null,0,"C35","",null,null,null,null,null,null,null,null,"General Service Less Than 50 kW – Transmission Class energy-billed [T]"]
[null,null,"Choose Rate Class",null,null,null,null,null,null,null,null,0,"C36","",null,null,null,null,null,null,null,null,"General Service Less Than 50 kW – Urban energy-billed [UG]"]
[null,null,"Choose Rate Class",null,null,null,null,null,null,null,null,0,"C37","",null,null,null,null,null,null,null,null,"Westport Sewage Treatment Plant"]
[null,null,"Choose Rate Class",null,null,null,null,null,null,null,null,0,"C38","",null,null,null,null,null,null,null,null,"Small Commercial and USL - per meter"]
[null,null,null,null,null,null,null,null,null,null,null,null,null,{"$f":"COUNTIF(N17:N38, \"x\")","v":0},null,null,null,null,null,null,null,null,"Small Commercial and USL - per connection"]
[null,null,null,null,null,null,null,null,null,null,null,null,null,null,null,null,null,null,null,null,null,null,"Farms – Single Phase energy-billed [F1]"]
[null,null,null,null,null,null,null,null,null,null,null,null,null,null,null,null,null,null,null,null,null,null,"General Service 50 to 499 kW"]
[null,null,null,null,null,null,null,null,null,null,null,null,null,null,null,null,null,null,null,null,null,null,"General Service 50 to 699 kW"]
[null,null,null,null,null,null,null,null,null,null,null,null,null,null,null,null,null,null,null,null,null,null,"General Service 50 to 999 kW"]
[null,null,null,null,null,null,null,null,null,null,null,null,null,null,null,null,null,null,null,null,null,null,"General Service 50 to 999 kW - Interval Metered"]
[null,null,null,null,null,null,null,null,null,null,null,null,null,null,null,null,null,null,null,null,null,null,"General Service 50 to 1,000 kW"]
[null,null,null,null,null,null,null,null,null,null,null,null,null,null,null,null,null,null,null,null,null,null,"General Service 50 to 1,000 kW - Interval Meters"]
[null,null,null,null,null,null,null,null,null,null,null,null,null,null,null,null,null,null,null,null,null,null,"General Service 50 to 1,000 kW - Non Interval Meters"]
[null,null,null,null,null,null,null,null,null,null,null,null,null,null,null,null,null,null,null,null,null,null,"General Service 50 to 1,499 kW"]
[null,null,null,null,null,null,null,null,null,null,null,null,null,null,null,null,null,null,null,null,null,null,"General Service 50 to 1,499 kW - Interval Metered"]
[null,null,null,null,null,null,null,null,null,null,null,null,null,null,null,null,null,null,null,null,null,null,"General Service  50 to 2,499 kW"]
[null,null,null,null,null,null,null,null,null,null,null,null,null,null,null,null,null,null,null,null,null,null,"General Service 50 to 2,999 kW"]
[null,null,null,null,null,null,null,null,null,null,null,null,null,null,null,null,null,null,null,null,null,null,"General Service 50 to 2,999 kW - Time of Use"]
[null,null,null,null,null,null,null,null,null,null,null,null,null,null,null,null,null,null,null,null,null,null,"General Service 50 to 4,999 kW"]
[null,null,null,null,null,null,null,null,null,null,null,null,null,null,null,null,null,null,null,null,null,null,"General Service 50 to 4,999 kW – Interval Metered"]
[null,null,null,null,null,null,null,null,null,null,null,null,null,null,null,null,null,null,null,null,null,null,"General Service 50 to 4,999 kW - Time of Use"]
[null,null,null,null,null,null,null,null,null,null,null,null,null,null,null,null,null,null,null,null,null,null,"General Service 50 to 4,999 kW (CoGeneration)"]
[null,null,null,null,null,null,null,null,null,null,null,null,null,null,null,null,null,null,null,null,null,null,"General Service 50 to 4,999 kW (formerly Time of Use)"]
[null,null,null,null,null,null,null,null,null,null,null,null,null,null,null,null,null,null,null,null,null,null,"General Service 500 to 4,999 kW"]
[null,null,null,null,null,null,null,null,null,null,null,null,null,null,null,null,null,null,null,null,null,null,"General Service 700 to 4,999 kW"]
[null,null,null,null,null,null,null,null,null,null,null,null,null,null,null,null,null,null,null,null,null,null,"General Service 1,000 to 2,999 kW"]
[null,null,null,null,null,null,null,null,null,null,null,null,null,null,null,null,null,null,null,null,null,null,"General Service 1,000 to 4,999 kW"]
[null,null,null,null,null,null,null,null,null,null,null,null,null,null,null,null,null,null,null,null,null,null,"General Service 1,000 to 4,999 kW - Interval Meters"]
[null,null,null,null,null,null,null,null,null,null,null,null,null,null,null,null,null,null,null,null,null,null,"General Service 1,000 To 4,999 kW (co-generation)"]
[null,null,null,null,null,null,null,null,null,null,null,null,null,null,null,null,null,null,null,null,null,null,"General Service Greater Than 1,000 kW"]
[null,null,null,null,null,null,null,null,null,null,null,null,null,null,null,null,null,null,null,null,null,null,"General Service Intermediate Rate Class 1,000 To 4,999 kW (formerly Large Use Customers)"]
[null,null,null,null,null,null,null,null,null,null,null,null,null,null,null,null,null,null,null,null,null,null,"General Service Intermediate Rate Class 1,000 To 4,999 kW (formerly General Service > 50 kW Customers)"]
[null,null,null,null,null,null,null,null,null,null,null,null,null,null,null,null,null,null,null,null,null,null,"General Service 1,500 to 4,999 kW"]
[null,null,null,null,null,null,null,null,null,null,null,null,null,null,null,null,null,null,null,null,null,null,"General Service Equal To Or Greater Than 1,500 kW"]
[null,null,null,null,null,null,null,null,null,null,null,null,null,null,null,null,null,null,null,null,null,null,"General Service Equal To Or Greater Than 1,500 kW - Interval Metered"]
[null,null,null,null,null,null,null,null,null,null,null,null,null,null,null,null,null,null,null,null,null,null,"General Service Intermediate 1,000 To 4,999 kW"]
[null,null,null,null,null,null,null,null,null,null,null,null,null,null,null,null,null,null,null,null,null,null,"General Service 2,500 to 4,999 kW"]
[null,null,null,null,null,null,null,null,null,null,null,null,null,null,null,null,null,null,null,null,null,null,"General Service 3,000 to 4,999 kW"]
[null,null,null,null,null,null,null,null,null,null,null,null,null,null,null,null,null,null,null,null,null,null,"General Service 3,000 to 4,999 kW - Interval Metered"]
[null,null,null,null,null,null,null,null,null,null,null,null,null,null,null,null,null,null,null,null,null,null,"General Service 3,000 to 4,999 kW - Intermediate Use"]
[null,null,null,null,null,null,null,null,null,null,null,null,null,null,null,null,null,null,null,null,null,null,"General Service 3,000 to 4,999 kW - Time of Use"]
[null,null,null,null,null,null,null,null,null,null,null,null,null,null,null,null,null,null,null,null,null,null,"Intermediate With Self Generation"]
[null,null,null,null,null,null,null,null,null,null,null,null,null,null,null,null,null,null,null,null,null,null,"General Service - Commercial"]
[null,null,null,null,null,null,null,null,null,null,null,null,null,null,null,null,null,null,null,null,null,null,"General Service - Institutional"]
[null,null,null,null,null,null,null,null,null,null,null,null,null,null,null,null,null,null,null,null,null,null,"Farms – Three Phase energy-billed [F3]"]
[null,null,null,null,null,null,null,null,null,null,null,null,null,null,null,null,null,null,null,null,null,null,"Large Use"]
[null,null,null,null,null,null,null,null,null,null,null,null,null,null,null,null,null,null,null,null,null,null,"Large Use - Regular"]
[null,null,null,null,null,null,null,null,null,null,null,null,null,null,null,null,null,null,null,null,null,null,"Large Use > 5000 kW"]
[null,null,null,null,null,null,null,null,null,null,null,null,null,null,null,null,null,null,null,null,null,null,"Large Use - 3TS"]
[null,null,null,null,null,null,null,null,null,null,null,null,null,null,null,null,null,null,null,null,null,null,"Large Use - Ford Annex"]
[null,null,null,null,null,null,null,null,null,null,null,null,null,null,null,null,null,null,null,null,null,null,"Unmetered Scattered Load"]
[null,null,null,null,null,null,null,null,null,null,null,null,null,null,null,null,null,null,null,null,null,null,"Sentinel Lighting"]
[null,null,null,null,null,null,null,null,null,null,null,null,null,null,null,null,null,null,null,null,null,null,"Street Lighting"]
[null,null,null,null,null,null,null,null,null,null,null,null,null,null,null,null,null,null,null,null,null,null,"Embedded Distributor"]
[null,null,null,null,null,null,null,null,null,null,null,null,null,null,null,null,null,null,null,null,null,null,"Low Voltage Wheeling Charge Rate"]
[null,null,null,null,null,null,null,null,null,null,null,null,null,null,null,null,null,null,null,null,null,null,"Stand-By"]
[null,null,null,null,null,null,null,null,null,null,null,null,null,null,null,null,null,null,null,null,null,null,"Standby Power"]
[null,null,null,null,null,null,null,null,null,null,null,null,null,null,null,null,null,null,null,null,null,null,"Standby Power – INTERIM APPROVAL"]
[null,null,null,null,null,null,null,null,null,null,null,null,null,null,null,null,null,null,null,null,null,null,"Standby Power - APPROVED ON AN INTERIM BASIS"]
[null,null,null,null,null,null,null,null,null,null,null,null,null,null,null,null,null,null,null,null,null,null,"Standby - General Service 50 - 1,000 kW"]
[null,null,null,null,null,null,null,null,null,null,null,null,null,null,null,null,null,null,null,null,null,null,"Standby Power General Service 50 to 1,499 kW"]
[null,null,null,null,null,null,null,null,null,null,null,null,null,null,null,null,null,null,null,null,null,null,"Standby - General Service 1,000 - 5,000 kW"]
[null,null,null,null,null,null,null,null,null,null,null,null,null,null,null,null,null,null,null,null,null,null,"Standby Power General Service 1,500 to 4,999 kW"]
[null,null,null,null,null,null,null,null,null,null,null,null,null,null,null,null,null,null,null,null,null,null,"Standby - Large Use"]
[null,null,null,null,null,null,null,null,null,null,null,null,null,null,null,null,null,null,null,null,null,null,"Standby Power General Service Large Use"]
[null,null,null,null,null,null,null,null,null,null,null,null,null,null,null,null,null,null,null,null,null,null,"Standby Distribution Service"]

{"sheet":"4. RRR Data","index":3,"n_rows":28,"n_cols":9,"rows_kept":28,"cut":false,"hidden":false,"merged":[[12,1,12,8]]}
[]
[]
[]
[]
[]
[]
[]
[]
[]
[]
[]
[]
[]
[]
[null,"Rate Class","Rate Description","Unit","Rate","Non-Loss Adjusted Metered kWh","Non-Loss Adjusted Metered kW","Applicable \nLoss Factor\neg: (1.0325)","Loss Adjusted Billed kWh"]
[]
[null,"Residential","RTSR - Network","kWh",7.1000000000000004E-3,71017298.599999994,null,1.0379,{"$f":"F17*H17","v":73708854.216940001}]
[null,"Residential","RTSR - Connection","kWh",1.6999999999999999E-3,71017298.599999994,null,1.0379,{"$f":"F18*H18","v":73708854.216940001}]
[null,"General Service Less Than 50 kW","RTSR - Network","kWh",6.4999999999999997E-3,40733064.100000001,null,1.0379,{"$f":"F19*H19","v":42276847.229390003}]
[null,"General Service Less Than 50 kW","RTSR - Connection","kWh",1.6999999999999999E-3,40733064.100000001,null,1.0379,{"$f":"F20*H20","v":42276847.229390003}]
[null,"General Service 50 to 4,999 kW","RTSR - Network","kW",2.641,46719754.039999992,122962.26]
[null,"General Service 50 to 4,999 kW","RTSR - Connection","kW",0.56410000000000005,46719754.039999992,114823.28499999999]
[null,"General Service 50 to 4,999 kW – Interval Metered","RTSR - Network","kW",2.8542999999999998,37379542.960000008,89639.54]
[null,"General Service 50 to 4,999 kW – Interval Metered","RTSR - Connection","kW",1.3567,37379542.960000008,97778.514999999999]
[null,"Unmetered Scattered Load","RTSR - Network","kWh",6.4999999999999997E-3,250759.4,null,1.0379,{"$f":"F25*H25","v":260263.18126000001}]
[null,"Unmetered Scattered Load","RTSR - Connection","kWh",1.6999999999999999E-3,250759.4,null,1.0379,{"$f":"F26*H26","v":260263.18126000001}]
[null,"Street Lighting","RTSR - Network","kW",1.9914000000000001,858843.6,2400.4]
[null,"Street Lighting","RTSR - Connection","kW",0.43609999999999999,858843.6,2400.4]

{"sheet":"5. UTRs and Sub-Transmission","index":4,"n_rows":75,"n_cols":10,"rows_kept":75,"cut":false,"hidden":false,"merged":[[48,4,48,5],[44,4,44,5],[59,4,59,5],[28,4,28,5],[17,4,17,5],[33,4,33,5],[19,4,19,5],[21,4,21,5],[23,4,23,5],[25,4,25,5],[35,4,35,5],[37,4,37,5],[38,4,39,5],[41,4,41,5],[69,4,69,5],[71,4,71,5],[74,4,74,5],[73,4,73,5],[50,4,50,5],[52,4,52,5],[54,4,54,5],[56,4,56,5],[65,4,65,5],[67,4,67,5]]}
[]
[]
[]
[]
[]
[]
[]
[]
[]
[]
[]
[]
[]
[]
[]
[]
[]
[null,"Uniform Transmission Rates","Unit",null,2017,null,null,2018,null,2019]
[]
[null,"Rate Description",null,null,"Rate",null,null,"Rate",null,"Rate"]
[]
[null,"Network Service Rate","kW",null,3.66,null,null,3.61,null,{"$f":"+H22","v":3.61}]
[]
[null,"Line Connection Service Rate","kW",null,0.87,null,null,0.95,null,{"$f":"+H24","v":0.95}]
[]
[null,"Transformation Connection Service Rate","kW",null,2.02,null,null,2.34,null,{"$f":"+H26","v":2.34}]
[]
[]
[null,"Hydro One Sub-Transmission Rates","Unit",null,2017,null,null,2018,null,2019]
[]
[]
[]
[]
[null,"Rate Description",null,null,"Rate",null,null,"Rate",null,"Rate"]
[]
[null,"Network Service Rate","kW",null,3.1941999999999999,null,null,3.1941999999999999]
[]
[null,"Line Connection Service Rate","kW",null,0.77100000000000002,null,null,0.77100000000000002]
[null,null,null,null,1.7493000000000001]
[null,"Transformation Connection Service Rate","kW",null,null,null,null,1.7493000000000001]
[]
[null,"Both Line and Transformation Connection Service Rate","kW",null,{"$f":"E39+E38","v":2.5203000000000002},null,null,{"$f":"SUM(H40,H38)","v":2.5203000000000002},null,{"$f":"SUM(J40,J38)","v":0}]
[]
[]
[null,"If needed, add extra host here. (I)","Unit",null,2017,null,null,2018,null,2019]
[]
[]
[]
[null,"Rate Description",null,null,"Rate",null,null,"Rate",null,"Rate"]
[]
[null,"Network Service Rate","kW"]
[]
[null,"Line Connection Service Rate","kW"]
[]
[null,"Transformation Connection Service Rate","kW"]
[]
[null,"Both Line and Transformation Connection Service Rate","kW",null,{"$f":"SUM(E53,E55)","v":0},null,null,{"$f":"SUM(H53,H55)","v":0},null,{"$f":"J55+J53","v":0}]
[]
[]
[null,"If needed, add extra host here. (II)","Unit",null,"Effective \nJanuary 1, 2017",null,null,"Effective \nJanuary 1, 2018",null,"Effective \nJanuary 1, 2019"]
[]
[]
[]
[null,"Rate Description",null,null,"Rate",null,null,"Rate",null,"Rate"]
[]
[null,"Network Service Rate","kW"]
[]
[null,"Line Connection Service Rate","kW"]
[]
[null,"Transformation Connection Service Rate","kW"]
[]
[null,"Both Line and Transformation Connection Service Rate","kW",null,{"$f":"SUM(E68,E70)","v":0},null,null,{"$f":"SUM(H68,H70)","v":0},null,{"$f":"J70+J68","v":0}]
[]
[null,null,null,null,"Historical 2017",null,null,"Current 2018",null,"Forecast 2019"]
[null,"Low Voltage Switchgear Credit (if applicable, enter as a negative value)","$"]

{"sheet":"6. Historical Wholesale","index":5,"n_rows":117,"n_cols":16,"rows_kept":117,"cut":false,"hidden":false,"merged":[[95,7,95,9],[95,11,95,13],[96,7,96,9],[96,11,96,13],[20,3,20,5],[20,7,20,9],[20,11,20,13],[96,3,96,5],[38,3,38,5],[38,7,38,9],[38,11,38,13],[95,3,95,5],[57,3,57,5],[57,7,57,9],[57,11,57,13],[76,3,76,5],[76,7,76,9],[76,11,76,13]]}
[]
[]
[]
[]
[]
[]
[]
[]
[]
[]
[]
[]
[]
[]
[]
[]
[]
[]
[]
[]
[null,"IESO",null,"Network",null,null,null,"Line Connection",null,null,null,"Transformation Connection",null,null,null,"Total Line"]
[null,"Month",null,"Units Billed","Rate","Amount",null,"Units Billed","Rate","Amount",null,"Units Billed","Rate","Amount",null,"Amount"]
[]
[null,"January",null,{"$f":"16769+12852","v":29621},{"$f":"+F24/D24","v":3.66},108412.86,null,{"$f":"17614+12852","v":30466},{"$f":"+J24/H24","v":0.87},26505.42,null,null,null,null,null,{"$f":"J24+N24","v":26505.42}]
[null,"February",null,{"$f":"16082+12349","v":28431},{"$f":"+F25/D25","v":3.66},104057.46,null,{"$f":"16585+12479","v":29064},{"$f":"+J25/H25","v":0.87},25285.68,null,null,null,null,null,25285.68]
[null,"March",null,{"$f":"15543+10184","v":25727},{"$f":"+F26/D26","v":3.66},94160.82,null,{"$f":"16381+11969","v":28350},{"$f":"+J26/H26","v":0.87},24664.5,null,null,null,null,null,24664.5]
[null,"April",null,{"$f":"14072+9410","v":23482},3.6599999999999997,85944.12,null,{"$f":"14869+10839","v":25708},1.3801882682433482,35481.879999999997,null,null,null,null,null,35481.879999999997]
[null,"May",null,{"$f":"17686+11198","v":28884},3.66,105715.44,null,{"$f":"17686+11647","v":29333},0.87,25519.71,null,null,null,null,null,25519.71]
[null,"June",null,{"$f":"20848+12952","v":33800},3.66,123708,null,{"$f":"23205+14364","v":37569},0.87,32685.03,null,null,null,null,null,32685.03]
[null,"July",null,{"$f":"23781+14371","v":38152},3.66,139636.32,null,{"$f":"23930+15269","v":39199},0.86999999999999988,34103.129999999997,null,null,null,null,null,34103.129999999997]
[null,"August",null,{"$f":"23824+15334","v":39158},3.66,143318.28,null,{"$f":"23985+15429","v":39414},0.87,34290.18,null,null,null,null,null,34290.18]
[null,"September",null,{"$f":"22201+15180","v":37381},3.6599999999999997,136814.46,null,{"$f":"23501+16409","v":39910},0.86999999999999988,34721.699999999997,null,null,null,null,null,34721.699999999997]
[null,"October",null,{"$f":"15985+10673","v":26658},3.66,97568.28,null,{"$f":"16785+11234","v":28019},0.87,24376.53,null,null,null,null,null,24376.53]
[null,"November",null,{"$f":"15426+10229","v":25655},1.8212605729877218,46724.44,null,{"$f":"16315+11459","v":27774},0.99774753366457836,27711.439999999999,null,null,null,null,null,27711.439999999999]
[null,"December",null,{"$f":"17521+13431","v":30952},4.9280240372189201,152532.20000000001,null,{"$f":"19084+13433","v":32517},0.77942737644924187,25344.639999999999,null,null,null,null,null,25344.639999999999]
[]
[null,"Total",null,{"$f":"SUM(D24:D35)","v":367901},{"$f":"IF(D37<>0,F37/D37,0)","v":3.6384589332456283},{"$f":"SUM(F24:F35)","v":1338592.68},null,{"$f":"SUM(H24:H35)","v":387323},{"$f":"IF(H37<>0,J37/H37,0)","v":0.90541961102232515},{"$f":"SUM(J24:J35)","v":350689.84},null,{"$f":"SUM(L24:L35)","v":0},{"$f":"IF(L37<>0,N37/L37,0)","v":0},{"$f":"SUM(N24:N35)","v":0},null,{"$f":"SUM(P24:P35)","v":350689.84}]
[]
[null,"Hydro One",null,"Network",null,null,null,"Line Connection",null,null,null,"Transformation Connection",null,null,null,"Total Line"]
[]
[null,"Month",null,"Units Billed","Rate","Amount",null,"Units Billed","Rate","Amount",null,"Units Billed","Rate","Amount",null,"Amount"]
[]
[null,"January",null,null,{"$f":"IF(D43<>0,F43/D43,0)","v":0},null,null,null,{"$f":"IF(H43<>0,J43/H43,0)","v":0},null,null,null,{"$f":"IF(L43<>0,N43/L43,0)","v":0},null,null,{"$f":"J43+N43","v":0}]
[null,"February",null,null,{"$f":"IF(D44<>0,F44/D44,0)","v":0},null,null,null,{"$f":"IF(H44<>0,J44/H44,0)","v":0},null,null,null,{"$f":"IF(L44<>0,N44/L44,0)","v":0},null,null,0]
[null,"March",null,null,0,null,null,null,0,null,null,null,0,null,null,0]
[null,"April",null,null,0,null,null,null,0,null,null,null,0,null,null,0]
[null,"May",null,null,0,null,null,null,0,null,null,null,0,null,null,0]
[null,"June",null,null,0,null,null,null,0,null,null,null,0,null,null,0]
[null,"July",null,null,0,null,null,null,0,null,null,null,0,null,null,0]
[null,"August",null,null,0,null,null,null,0,null,null,null,0,null,null,0]
[null,"September",null,null,0,null,null,null,0,null,null,null,0,null,null,0]
[null,"October",null,null,0,null,null,null,0,null,null,null,0,null,null,0]
[null,"November",null,null,0,null,null,null,0,null,null,null,0,null,null,0]
[null,"December",null,null,0,null,null,null,0,null,null,null,0,null,null,0]
[]
[null,"Total",null,{"$f":"SUM(D43:D54)","v":0},{"$f":"IF(D56<>0,F56/D56,0)","v":0},{"$f":"SUM(F43:F54)","v":0},null,{"$f":"SUM(H43:H54)","v":0},{"$f":"IF(H56<>0,J56/H56,0)","v":0},{"$f":"SUM(J43:J54)","v":0},null,{"$f":"SUM(L43:L54)","v":0},{"$f":"IF(L56<>0,N56/L56,0)","v":0},{"$f":"SUM(N43:N54)","v":0},null,{"$f":"SUM(P43:P54)","v":0}]
[]
[null,"Add Extra Host Here (I)",null,"Network",null,null,null,"Line Connection",null,null,null,"Transformation Connection",null,null,null,"Total Line"]
[null,"(if needed)"]
[null,"Month",null,"Units Billed","Rate","Amount",null,"Units Billed","Rate","Amount",null,"Units Billed","Rate","Amount",null,"Amount"]
[]
[null,"January",null,null,{"$f":"IF(D62<>0,F62/D62,0)","v":0},null,null,null,{"$f":"IF(H62<>0,J62/H62,0)","v":0},null,null,null,{"$f":"IF(L62<>0,N62/L62,0)","v":0},null,null,{"$f":"J62+N62","v":0}]
[null,"February",null,null,0,null,null,null,0,null,null,null,0,null,null,0]
[null,"March",null,null,0,null,null,null,0,null,null,null,0,null,null,0]
[null,"April",null,null,0,null,null,null,0,null,null,null,0,null,null,0]
[null,"May",null,null,0,null,null,null,0,null,null,null,0,null,null,0]
[null,"June",null,null,0,null,null,null,0,null,null,null,0,null,null,0]
[null,"July",null,null,0,null,null,null,0,null,null,null,0,null,null,0]
[null,"August",null,null,0,null,null,null,0,null,null,null,0,null,null,0]
[null,"September",null,null,0,null,null,null,0,null,null,null,0,null,null,0]
[null,"October",null,null,0,null,null,null,0,null,null,null,0,null,null,0]
[null,"November",null,null,0,null,null,null,0,null,null,null,0,null,null,0]
[null,"December",null,null,0,null,null,null,0,null,null,null,0,null,null,0]
[]
[null,"Total",null,{"$f":"SUM(D62:D73)","v":0},{"$f":"IF(D75<>0,F75/D75,0)","v":0},{"$f":"SUM(F62:F73)","v":0},null,{"$f":"SUM(H62:H73)","v":0},{"$f":"IF(H75<>0,J75/H75,0)","v":0},{"$f":"SUM(J62:J73)","v":0},null,{"$f":"SUM(L62:L73)","v":0},{"$f":"IF(L75<>0,N75/L75,0)","v":0},{"$f":"SUM(N62:N73)","v":0},null,{"$f":"SUM(P62:P73)","v":0}]
[]
[null,"Add Extra Host Here (II)",null,"Network",null,null,null,"Line Connection",null,null,null,"Transformation Connection",null,null,null,"Total Line"]
[null,"(if needed)"]
[null,"Month",null,"Units Billed","Rate","Amount",null,"Units Billed","Rate","Amount",null,"Units Billed","Rate","Amount",null,"Amount"]
[]
[null,"January",null,null,{"$f":"IF(D81<>0,F81/D81,0)","v":0},null,null,null,{"$f":"IF(H81<>0,J81/H81,0)","v":0},null,null,null,{"$f":"IF(L81<>0,N81/L81,0)","v":0},null,null,{"$f":"J81+N81","v":0}]
[null,"February",null,null,0,null,null,null,0,null,null,null,0,null,null,0]
[null,"March",null,null,0,null,null,null,0,null,null,null,0,null,null,0]
[null,"April",null,null,0,null,null,null,0,null,null,null,0,null,null,0]
[null,"May",null,null,0,null,null,null,0,null,null,null,0,null,null,0]
[null,"June",null,null,0,null,null,null,0,null,null,null,0,null,null,0]
[null,"July",null,null,0,null,null,null,0,null,null,null,0,null,null,0]
[null,"August",null,null,0,null,null,null,0,null,null,null,0,null,null,0]
[null,"September",null,null,0,null,null,null,0,null,null,null,0,null,null,0]
[null,"October",null,null,0,null,null,null,0,null,null,null,0,null,null,0]
[null,"November",null,null,0,null,null,null,0,null,null,null,0,null,null,0]
[null,"December",null,null,0,null,null,null,0,null,null,null,0,null,null,0]
[]
[null,"Total",null,{"$f":"SUM(D81:D92)","v":0},{"$f":"IF(D94<>0,F94/D94,0)","v":0},{"$f":"SUM(F81:F92)","v":0},null,{"$f":"SUM(H81:H92)","v":0},{"$f":"IF(H94<>0,J94/H94,0)","v":0},{"$f":"SUM(J81:J92)","v":0},null,{"$f":"SUM(L81:L92)","v":0},{"$f":"IF(L94<>0,N94/L94,0)","v":0},{"$f":"SUM(N81:N92)","v":0},null,{"$f":"SUM(P81:P92)","v":0}]
[]
[null,"Total",null,"Network",null,null,null,"Line Connection",null,null,null,"Transformation Connection",null,null,null,"Total Line"]
[]
[null,"Month",null,"Units Billed","Rate","Amount",null,"Units Billed","Rate","Amount",null,"Units Billed","Rate","Amount",null,"Amount"]
[]
[null,"January",null,{"$f":"D24+D43+D62+D81","v":29621},{"$f":"IF(D100<>0,F100/D100,0)","v":3.66},{"$f":"F24+F43+F62+F81","v":108412.86},null,{"$f":"H24+H43+H62+H81","v":30466},{"$f":"IF(H100<>0,J100/H100,0)","v":0.87},{"$f":"J24+J43+J62+J81","v":26505.42},null,{"$f":"L24+L43+L62+L81","v":0},{"$f":"IF(L100<>0,N100/L100,0)","v":0},{"$f":"N24+N43+N62+N81","v":0},null,{"$f":"J100+N100","v":26505.42}]
[null,"February",null,{"$f":"D25+D44+D63+D82","v":28431},3.66,{"$f":"F25+F44+F63+F82","v":104057.46},null,{"$f":"H25+H44+H63+H82","v":29064},0.87,{"$f":"J25+J44+J63+J82","v":25285.68},null,{"$f":"L25+L44+L63+L82","v":0},0,{"$f":"N25+N44+N63+N82","v":0},null,25285.68]
[null,"March",null,25727,3.66,94160.82,null,28350,0.87,24664.5,null,0,0,0,null,24664.5]
[null,"April",null,23482,3.6599999999999997,85944.12,null,25708,1.3801882682433482,35481.879999999997,null,0,0,0,null,35481.879999999997]
[null,"May",null,28884,3.66,105715.44,null,29333,0.87,25519.71,null,0,0,0,null,25519.71]
[null,"June",null,33800,3.66,123708,null,37569,0.87,32685.03,null,0,0,0,null,32685.03]
[null,"July",null,38152,3.66,139636.32,null,39199,0.86999999999999988,34103.129999999997,null,0,0,0,null,34103.129999999997]
[null,"August",null,39158,3.66,143318.28,null,39414,0.87,34290.18,null,0,0,0,null,34290.18]
[null,"September",null,37381,3.6599999999999997,136814.46,null,39910,0.86999999999999988,34721.699999999997,null,0,0,0,null,34721.699999999997]
[null,"October",null,26658,3.66,97568.28,null,28019,0.87,24376.53,null,0,0,0,null,24376.53]
[null,"November",null,25655,1.8212605729877218,46724.44,null,27774,0.99774753366457836,27711.439999999999,null,0,0,0,null,27711.439999999999]
[null,"December",null,30952,4.9280240372189201,152532.20000000001,null,32517,0.77942737644924187,25344.639999999999,null,0,0,0,null,25344.639999999999]
[]
[null,"Total",null,{"$f":"SUM(D100:D111)","v":367901},{"$f":"IF(D113<>0,F113/D113,0)","v":3.6384589332456283},{"$f":"SUM(F100:F111)","v":1338592.68},null,{"$f":"SUM(H100:H111)","v":387323},{"$f":"IF(H113<>0,J113/H113,0)","v":0.90541961102232515},{"$f":"SUM(J100:J111)","v":350689.84},null,{"$f":"SUM(L100:L111)","v":0},{"$f":"IF(L113<>0,N113/L113,0)","v":0},{"$f":"SUM(N100:N111)","v":0},null,{"$f":"SUM(P100:P111)","v":350689.84}]
[]
[null,null,null,null,null,null,null,null,null,null,null,null,null,"Low Voltage Switchgear Credit (if applicable)",null,{"$f":"'5. UTRs and Sub-Transmission'!E75","v":0}]
[]
[null,null,null,null,null,null,null,null,null,null,null,null,null,"Total including deduction for Low Voltage Switchgear Credit",null,{"$f":"P113+P115","v":350689.84}]

{"sheet":"7. Current Wholesale","index":6,"n_rows":117,"n_cols":16,"rows_kept":117,"cut":false,"hidden":false,"merged":[[12,1,12,11],[19,3,19,5],[19,7,19,9],[19,11,19,13],[38,3,38,5],[38,7,38,9],[38,11,38,13],[96,7,96,9],[96,11,96,13],[20,3,20,5],[20,7,20,9],[20,11,20,13],[96,3,96,5],[95,3,95,5],[95,7,95,9],[95,11,95,13],[57,3,57,5],[57,7,57,9],[57,11,57,13],[76,3,76,5],[76,7,76,9],[76,11,76,13]]}
[]
[]
[]
[]
[]
[]
[]
[]
[]
[]
[]
[]
[null,"The purpose of this sheet is to calculate the expected billing when current 2018 Uniform Transmission Rates are applied against historical 2017 transmission units."]
[]
[]
[]
[]
[]
[]
[null,"IESO",null,"Network",null,null,null,"Line Connection",null,null,null,"Transformation Connection",null,null,null,"Total Line"]
[]
[null,"Month",null,"Units Billed","Rate","Amount",null,"Units Billed","Rate","Amount",null,"Units Billed","Rate","Amount",null,"Amount"]
[]
[null,"January",null,{"$f":"'6. Historical Wholesale'!D24","v":29621},{"$f":"'5. UTRs and Sub-Transmission'!H22","v":3.61},{"$f":"D24*E24","v":106931.81},null,{"$f":"'6. Historical Wholesale'!H24","v":30466},{"$f":"'5. UTRs and Sub-Transmission'!H24","v":0.95},{"$f":"H24*I24","v":28942.699999999997},null,{"$f":"'6. Historical Wholesale'!L24","v":0},{"$f":"'5. UTRs and Sub-Transmission'!H26","v":2.34},{"$f":"L24*M24","v":0},null,{"$f":"J24+N24","v":28942.699999999997}]
[null,"February",null,{"$f":"'6. Historical Wholesale'!D25","v":28431},{"$f":"E24","v":3.61},{"$f":"D25*E25","v":102635.91},null,{"$f":"'6. Historical Wholesale'!H25","v":29064},{"$f":"I24","v":0.95},{"$f":"H25*I25","v":27610.799999999999},null,{"$f":"'6. Historical Wholesale'!L25","v":0},{"$f":"M24","v":2.34},{"$f":"L25*M25","v":0},null,27610.799999999999]
[null,"March",null,{"$f":"'6. Historical Wholesale'!D26","v":25727},{"$f":"E25","v":3.61},92874.47,null,{"$f":"'6. Historical Wholesale'!H26","v":28350},{"$f":"I25","v":0.95},26932.5,null,{"$f":"'6. Historical Wholesale'!L26","v":0},{"$f":"M25","v":2.34},0,null,26932.5]
[null,"April",null,{"$f":"'6. Historical Wholesale'!D27","v":23482},3.61,84770.02,null,{"$f":"'6. Historical Wholesale'!H27","v":25708},0.95,24422.6,null,{"$f":"'6. Historical Wholesale'!L27","v":0},2.34,0,null,24422.6]
[null,"May",null,{"$f":"'6. Historical Wholesale'!D28","v":28884},3.61,104271.23999999999,null,{"$f":"'6. Historical Wholesale'!H28","v":29333},0.95,27866.35,null,{"$f":"'6. Historical Wholesale'!L28","v":0},2.34,0,null,27866.35]
[null,"June",null,{"$f":"'6. Historical Wholesale'!D29","v":33800},3.61,122018,null,{"$f":"'6. Historical Wholesale'!H29","v":37569},0.95,35690.549999999996,null,{"$f":"'6. Historical Wholesale'!L29","v":0},2.34,0,null,35690.549999999996]
[null,"July",null,{"$f":"'6. Historical Wholesale'!D30","v":38152},3.61,137728.72,null,{"$f":"'6. Historical Wholesale'!H30","v":39199},0.95,37239.049999999996,null,{"$f":"'6. Historical Wholesale'!L30","v":0},2.34,0,null,37239.049999999996]
[null,"August",null,{"$f":"'6. Historical Wholesale'!D31","v":39158},3.61,141360.38,null,{"$f":"'6. Historical Wholesale'!H31","v":39414},0.95,37443.299999999996,null,{"$f":"'6. Historical Wholesale'!L31","v":0},2.34,0,null,37443.299999999996]
[null,"September",null,{"$f":"'6. Historical Wholesale'!D32","v":37381},3.61,134945.41,null,{"$f":"'6. Historical Wholesale'!H32","v":39910},0.95,37914.5,null,{"$f":"'6. Historical Wholesale'!L32","v":0},2.34,0,null,37914.5]
[null,"October",null,{"$f":"'6. Historical Wholesale'!D33","v":26658},3.61,96235.37999999999,null,{"$f":"'6. Historical Wholesale'!H33","v":28019},0.95,26618.05,null,{"$f":"'6. Historical Wholesale'!L33","v":0},2.34,0,null,26618.05]
[null,"November",null,{"$f":"'6. Historical Wholesale'!D34","v":25655},3.61,92614.55,null,{"$f":"'6. Historical Wholesale'!H34","v":27774},0.95,26385.3,null,{"$f":"'6. Historical Wholesale'!L34","v":0},2.34,0,null,26385.3]
[null,"December",null,{"$f":"'6. Historical Wholesale'!D35","v":30952},3.61,111736.72,null,{"$f":"'6. Historical Wholesale'!H35","v":32517},0.95,30891.149999999998,null,{"$f":"'6. Historical Wholesale'!L35","v":0},2.34,0,null,30891.149999999998]
[]
[null,"Total",null,{"$f":"SUM(D24:D35)","v":367901},{"$f":"IF(D37<>0,F37/D37,0)","v":3.6099999999999994},{"$f":"SUM(F24:F35)","v":1328122.6099999999},null,{"$f":"SUM(H24:H35)","v":387323},{"$f":"IF(H37<>0,J37/H37,0)","v":0.95},{"$f":"SUM(J24:J35)","v":367956.85},null,{"$f":"SUM(L24:L35)","v":0},{"$f":"IF(L37<>0,N37/L37,0)","v":0},{"$f":"SUM(N24:N35)","v":0},null,{"$f":"SUM(P24:P35)","v":367956.85}]
[]
[null,"Hydro One",null,"Network",null,null,null,"Line Connection",null,null,null,"Transformation Connection",null,null,null,"Total Line"]
[]
[null,"Month",null,"Units Billed","Rate","Amount",null,"Units Billed","Rate","Amount",null,"Units Billed","Rate","Amount",null,"Amount"]
[]
[null,"January",null,{"$f":"'6. Historical Wholesale'!D43","v":0},{"$f":"'5. UTRs and Sub-Transmission'!H36","v":3.1941999999999999},{"$f":"D43*E43","v":0},null,{"$f":"'6. Historical Wholesale'!H43","v":0},{"$f":"'5. UTRs and Sub-Transmission'!H38","v":0.77100000000000002},{"$f":"H43*I43","v":0},null,{"$f":"'6. Historical Wholesale'!L43","v":0},{"$f":"'5. UTRs and Sub-Transmission'!H40","v":1.7493000000000001},{"$f":"L43*M43","v":0},null,{"$f":"J43+N43","v":0}]
[null,"February",null,{"$f":"'6. Historical Wholesale'!D44","v":0},{"$f":"E43","v":3.1941999999999999},{"$f":"D44*E44","v":0},null,{"$f":"'6. Historical Wholesale'!H44","v":0},{"$f":"I43","v":0.77100000000000002},{"$f":"H44*I44","v":0},null,{"$f":"'6. Historical Wholesale'!L44","v":0},{"$f":"M43","v":1.7493000000000001},{"$f":"L44*M44","v":0},null,0]
[null,"March",null,{"$f":"'6. Historical Wholesale'!D45","v":0},3.1941999999999999,0,null,{"$f":"'6. Historical Wholesale'!H45","v":0},0.77100000000000002,0,null,{"$f":"'6. Historical Wholesale'!L45","v":0},{"$f":"M44","v":1.7493000000000001},0,null,0]
[null,"April",null,{"$f":"'6. Historical Wholesale'!D46","v":0},3.1941999999999999,0,null,{"$f":"'6. Historical Wholesale'!H46","v":0},0.77100000000000002,0,null,{"$f":"'6. Historical Wholesale'!L46","v":0},{"$f":"M45","v":1.7493000000000001},0,null,0]
[null,"May",null,{"$f":"'6. Historical Wholesale'!D47","v":0},3.1941999999999999,0,null,{"$f":"'6. Historical Wholesale'!H47","v":0},0.77100000000000002,0,null,{"$f":"'6. Historical Wholesale'!L47","v":0},1.7493000000000001,0,null,0]
[null,"June",null,{"$f":"'6. Historical Wholesale'!D48","v":0},3.1941999999999999,0,null,{"$f":"'6. Historical Wholesale'!H48","v":0},0.77100000000000002,0,null,{"$f":"'6. Historical Wholesale'!L48","v":0},1.7493000000000001,0,null,0]
[null,"July",null,{"$f":"'6. Historical Wholesale'!D49","v":0},3.1941999999999999,0,null,{"$f":"'6. Historical Wholesale'!H49","v":0},0.77100000000000002,0,null,{"$f":"'6. Historical Wholesale'!L49","v":0},1.7493000000000001,0,null,0]
[null,"August",null,{"$f":"'6. Historical Wholesale'!D50","v":0},3.1941999999999999,0,null,{"$f":"'6. Historical Wholesale'!H50","v":0},0.77100000000000002,0,null,{"$f":"'6. Historical Wholesale'!L50","v":0},1.7493000000000001,0,null,0]
[null,"September",null,{"$f":"'6. Historical Wholesale'!D51","v":0},3.1941999999999999,0,null,{"$f":"'6. Historical Wholesale'!H51","v":0},0.77100000000000002,0,null,{"$f":"'6. Historical Wholesale'!L51","v":0},1.7493000000000001,0,null,0]
[null,"October",null,{"$f":"'6. Historical Wholesale'!D52","v":0},3.1941999999999999,0,null,{"$f":"'6. Historical Wholesale'!H52","v":0},0.77100000000000002,0,null,{"$f":"'6. Historical Wholesale'!L52","v":0},1.7493000000000001,0,null,0]
[null,"November",null,{"$f":"'6. Historical Wholesale'!D53","v":0},3.1941999999999999,0,null,{"$f":"'6. Historical Wholesale'!H53","v":0},0.77100000000000002,0,null,{"$f":"'6. Historical Wholesale'!L53","v":0},1.7493000000000001,0,null,0]
[null,"December",null,{"$f":"'6. Historical Wholesale'!D54","v":0},3.1941999999999999,0,null,{"$f":"'6. Historical Wholesale'!H54","v":0},0.77100000000000002,0,null,{"$f":"'6. Historical Wholesale'!L54","v":0},1.7493000000000001,0,null,0]
[]
[null,"Total",null,{"$f":"SUM(D43:D54)","v":0},{"$f":"IF(D56<>0,F56/D56,0)","v":0},{"$f":"SUM(F43:F54)","v":0},null,{"$f":"SUM(H43:H54)","v":0},{"$f":"IF(H56<>0,J56/H56,0)","v":0},{"$f":"SUM(J43:J54)","v":0},null,{"$f":"SUM(L43:L54)","v":0},{"$f":"IF(L56<>0,N56/L56,0)","v":0},{"$f":"SUM(N43:N54)","v":0},null,{"$f":"SUM(P43:P54)","v":0}]
[]
[null,{"$f":"'6. Historical Wholesale'!B58","v":"Add Extra Host Here (I)"},null,"Network",null,null,null,"Line Connection",null,null,null,"Transformation Connection",null,null,null,"Total Line"]
[]
[null,"Month",null,"Units Billed","Rate","Amount",null,"Units Billed","Rate","Amount",null,"Units Billed","Rate","Amount",null,"Amount"]
[]
[null,"January",null,{"$f":"'6. Historical Wholesale'!D62","v":0},{"$f":"'5. UTRs and Sub-Transmission'!H51","v":0},{"$f":"D62*E62","v":0},null,{"$f":"'6. Historical Wholesale'!H62","v":0},{"$f":"'5. UTRs and Sub-Transmission'!H53","v":0},{"$f":"H62*I62","v":0},null,{"$f":"'6. Historical Wholesale'!L62","v":0},{"$f":"'5. UTRs and Sub-Transmission'!H55","v":0},{"$f":"L62*M62","v":0},null,{"$f":"J62+N62","v":0}]
[null,"February",null,{"$f":"'6. Historical Wholesale'!D63","v":0},{"$f":"E62","v":0},{"$f":"D63*E63","v":0},null,{"$f":"'6. Historical Wholesale'!H63","v":0},{"$f":"I62","v":0},{"$f":"H63*I63","v":0},null,{"$f":"'6. Historical Wholesale'!L63","v":0},{"$f":"M62","v":0},{"$f":"L63*M63","v":0},null,0]
[null,"March",null,{"$f":"'6. Historical Wholesale'!D64","v":0},{"$f":"E63","v":0},0,null,{"$f":"'6. Historical Wholesale'!H64","v":0},{"$f":"I63","v":0},0,null,{"$f":"'6. Historical Wholesale'!L64","v":0},{"$f":"M63","v":0},0,null,0]
[null,"April",null,{"$f":"'6. Historical Wholesale'!D65","v":0},0,0,null,{"$f":"'6. Historical Wholesale'!H65","v":0},0,0,null,{"$f":"'6. Historical Wholesale'!L65","v":0},{"$f":"M64","v":0},0,null,0]
[null,"May",null,{"$f":"'6. Historical Wholesale'!D66","v":0},0,0,null,{"$f":"'6. Historical Wholesale'!H66","v":0},0,0,null,{"$f":"'6. Historical Wholesale'!L66","v":0},0,0,null,0]
[null,"June",null,{"$f":"'6. Historical Wholesale'!D67","v":0},0,0,null,{"$f":"'6. Historical Wholesale'!H67","v":0},0,0,null,{"$f":"'6. Historical Wholesale'!L67","v":0},0,0,null,0]
[null,"July",null,{"$f":"'6. Historical Wholesale'!D68","v":0},0,0,null,{"$f":"'6. Historical Wholesale'!H68","v":0},0,0,null,{"$f":"'6. Historical Wholesale'!L68","v":0},0,0,null,0]
[null,"August",null,{"$f":"'6. Historical Wholesale'!D69","v":0},0,0,null,{"$f":"'6. Historical Wholesale'!H69","v":0},0,0,null,{"$f":"'6. Historical Wholesale'!L69","v":0},0,0,null,0]
[null,"September",null,{"$f":"'6. Historical Wholesale'!D70","v":0},0,0,null,{"$f":"'6. Historical Wholesale'!H70","v":0},0,0,null,{"$f":"'6. Historical Wholesale'!L70","v":0},0,0,null,0]
[null,"October",null,{"$f":"'6. Historical Wholesale'!D71","v":0},0,0,null,{"$f":"'6. Historical Wholesale'!H71","v":0},0,0,null,{"$f":"'6. Historical Wholesale'!L71","v":0},0,0,null,0]
[null,"November",null,{"$f":"'6. Historical Wholesale'!D72","v":0},0,0,null,{"$f":"'6. Historical Wholesale'!H72","v":0},0,0,null,{"$f":"'6. Historical Wholesale'!L72","v":0},0,0,null,0]
[null,"December",null,{"$f":"'6. Historical Wholesale'!D73","v":0},0,0,null,{"$f":"'6. Historical Wholesale'!H73","v":0},0,0,null,{"$f":"'6. Historical Wholesale'!L73","v":0},0,0,null,0]
[]
[null,"Total",null,{"$f":"SUM(D62:D73)","v":0},{"$f":"IF(D75<>0,F75/D75,0)","v":0},{"$f":"SUM(F62:F73)","v":0},null,{"$f":"SUM(H62:H73)","v":0},{"$f":"IF(H75<>0,J75/H75,0)","v":0},{"$f":"SUM(J62:J73)","v":0},null,{"$f":"SUM(L62:L73)","v":0},{"$f":"IF(L75<>0,N75/L75,0)","v":0},{"$f":"SUM(N62:N73)","v":0},null,{"$f":"SUM(P62:P73)","v":0}]
[]
[null,{"$f":"'6. Historical Wholesale'!B77","v":"Add Extra Host Here (II)"},null,"Network",null,null,null,"Line Connection",null,null,null,"Transformation Connection",null,null,null,"Total Line"]
[]
[null,"Month",null,"Units Billed","Rate","Amount",null,"Units Billed","Rate","Amount",null,"Units Billed","Rate","Amount",null,"Amount"]
[]
[null,"January",null,{"$f":"'6. Historical Wholesale'!D81","v":0},{"$f":"'5. UTRs and Sub-Transmission'!H66","v":0},{"$f":"D81*E81","v":0},null,{"$f":"'6. Historical Wholesale'!H81","v":0},{"$f":"'5. UTRs and Sub-Transmission'!H68","v":0},{"$f":"H81*I81","v":0},null,{"$f":"'6. Historical Wholesale'!L81","v":0},{"$f":"'5. UTRs and Sub-Transmission'!H70","v":0},{"$f":"L81*M81","v":0},null,{"$f":"J81+N81","v":0}]
[null,"February",null,{"$f":"'6. Historical Wholesale'!D82","v":0},{"$f":"E81","v":0},{"$f":"D82*E82","v":0},null,{"$f":"'6. Historical Wholesale'!H82","v":0},{"$f":"I81","v":0},{"$f":"H82*I82","v":0},null,{"$f":"'6. Historical Wholesale'!L82","v":0},{"$f":"M81","v":0},{"$f":"L82*M82","v":0},null,0]
[null,"March",null,{"$f":"'6. Historical Wholesale'!D83","v":0},{"$f":"E82","v":0},0,null,{"$f":"'6. Historical Wholesale'!H83","v":0},{"$f":"I82","v":0},0,null,{"$f":"'6. Historical Wholesale'!L83","v":0},{"$f":"M82","v":0},0,null,0]
[null,"April",null,{"$f":"'6. Historical Wholesale'!D84","v":0},0,0,null,{"$f":"'6. Historical Wholesale'!H84","v":0},0,0,null,{"$f":"'6. Historical Wholesale'!L84","v":0},{"$f":"M83","v":0},0,null,0]
[null,"May",null,{"$f":"'6. Historical Wholesale'!D85","v":0},0,0,null,{"$f":"'6. Historical Wholesale'!H85","v":0},0,0,null,{"$f":"'6. Historical Wholesale'!L85","v":0},0,0,null,0]
[null,"June",null,{"$f":"'6. Historical Wholesale'!D86","v":0},0,0,null,{"$f":"'6. Historical Wholesale'!H86","v":0},0,0,null,{"$f":"'6. Historical Wholesale'!L86","v":0},0,0,null,0]
[null,"July",null,{"$f":"'6. Historical Wholesale'!D87","v":0},0,0,null,{"$f":"'6. Historical Wholesale'!H87","v":0},0,0,null,{"$f":"'6. Historical Wholesale'!L87","v":0},0,0,null,0]
[null,"August",null,{"$f":"'6. Historical Wholesale'!D88","v":0},0,0,null,{"$f":"'6. Historical Wholesale'!H88","v":0},0,0,null,{"$f":"'6. Historical Wholesale'!L88","v":0},0,0,null,0]
[null,"September",null,{"$f":"'6. Historical Wholesale'!D89","v":0},0,0,null,{"$f":"'6. Historical Wholesale'!H89","v":0},0,0,null,{"$f":"'6. Historical Wholesale'!L89","v":0},0,0,null,0]
[null,"October",null,{"$f":"'6. Historical Wholesale'!D90","v":0},0,0,null,{"$f":"'6. Historical Wholesale'!H90","v":0},0,0,null,{"$f":"'6. Historical Wholesale'!L90","v":0},0,0,null,0]
[null,"November",null,{"$f":"'6. Historical Wholesale'!D91","v":0},0,0,null,{"$f":"'6. Historical Wholesale'!H91","v":0},0,0,null,{"$f":"'6. Historical Wholesale'!L91","v":0},0,0,null,0]
[null,"December",null,{"$f":"'6. Historical Wholesale'!D92","v":0},0,0,null,{"$f":"'6. Historical Wholesale'!H92","v":0},0,0,null,{"$f":"'6. Historical Wholesale'!L92","v":0},0,0,null,0]
[]
[null,"Total",null,{"$f":"SUM(D81:D92)","v":0},{"$f":"IF(D94<>0,F94/D94,0)","v":0},{"$f":"SUM(F81:F92)","v":0},null,{"$f":"SUM(H81:H92)","v":0},{"$f":"IF(H94<>0,J94/H94,0)","v":0},{"$f":"SUM(J81:J92)","v":0},null,{"$f":"SUM(L81:L92)","v":0},{"$f":"IF(L94<>0,N94/L94,0)","v":0},{"$f":"SUM(N81:N92)","v":0},null,{"$f":"SUM(P81:P92)","v":0}]
[]
[null,"Total",null,"Network",null,null,null,"Line Connection",null,null,null,"Transformation Connection",null,null,null,"Total Line"]
[]
[null,"Month",null,"Units Billed","Rate","Amount",null,"Units Billed","Rate","Amount",null,"Units Billed","Rate","Amount",null,"Amount"]
[]
[null,"January",null,{"$f":"D24+D43+D62+D81","v":29621},{"$f":"IF(D100<>0,F100/D100,0)","v":3.61},{"$f":"F24+F43+F62+F81","v":106931.81},null,{"$f":"H24+H43+H62+H81","v":30466},{"$f":"IF(H100<>0,J100/H100,0)","v":0.95},{"$f":"J24+J43+J62+J81","v":28942.699999999997},null,{"$f":"L24+L43+L62+L81","v":0},{"$f":"IF(L100<>0,N100/L100,0)","v":0},{"$f":"N24+N43+N62+N81","v":0},null,{"$f":"J100+N100","v":28942.699999999997}]
[null,"February",null,{"$f":"D25+D44+D63+D82","v":28431},3.6100000000000003,{"$f":"F25+F44+F63+F82","v":102635.91},null,{"$f":"H25+H44+H63+H82","v":29064},0.95,{"$f":"J25+J44+J63+J82","v":27610.799999999999},null,{"$f":"L25+L44+L63+L82","v":0},0,{"$f":"N25+N44+N63+N82","v":0},null,27610.799999999999]
[null,"March",null,25727,3.61,92874.47,null,28350,0.95,26932.5,null,0,0,0,null,26932.5]
[null,"April",null,23482,3.6100000000000003,84770.02,null,25708,0.95,24422.6,null,0,0,0,null,24422.6]
[null,"May",null,28884,3.61,104271.23999999999,null,29333,0.95,27866.35,null,0,0,0,null,27866.35]
[null,"June",null,33800,3.61,122018,null,37569,0.94999999999999984,35690.549999999996,null,0,0,0,null,35690.549999999996]
[null,"July",null,38152,3.61,137728.72,null,39199,0.94999999999999984,37239.049999999996,null,0,0,0,null,37239.049999999996]
[null,"August",null,39158,3.6100000000000003,141360.38,null,39414,0.94999999999999984,37443.299999999996,null,0,0,0,null,37443.299999999996]
[null,"September",null,37381,3.61,134945.41,null,39910,0.95,37914.5,null,0,0,0,null,37914.5]
[null,"October",null,26658,3.6099999999999994,96235.37999999999,null,28019,0.95,26618.05,null,0,0,0,null,26618.05]
[null,"November",null,25655,3.6100000000000003,92614.55,null,27774,0.95,26385.3,null,0,0,0,null,26385.3]
[null,"December",null,30952,3.61,111736.72,null,32517,0.95,30891.149999999998,null,0,0,0,null,30891.149999999998]
[]
[null,"Total",null,{"$f":"SUM(D100:D111)","v":367901},{"$f":"IF(D113<>0,F113/D113,0)","v":3.6099999999999994},{"$f":"SUM(F100:F111)","v":1328122.6099999999},null,{"$f":"SUM(H100:H111)","v":387323},{"$f":"IF(H113<>0,J113/H113,0)","v":0.95},{"$f":"SUM(J100:J111)","v":367956.85},null,{"$f":"SUM(L100:L111)","v":0},{"$f":"IF(L113<>0,N113/L113,0)","v":0},{"$f":"SUM(N100:N111)","v":0},null,{"$f":"SUM(P100:P111)","v":367956.85}]
[]
[null,null,null,null,null,null,null,null,null,null,null,null,null,"Low Voltage Switchgear Credit (if applicable)",null,{"$f":"'5. UTRs and Sub-Transmission'!H75","v":0}]
[]
[null,null,null,null,null,null,null,null,null,null,null,null,null,"Total including deduction for Low Voltage Switchgear Credit",null,{"$f":"P113+P115","v":367956.85}]

{"sheet":"8. Forecast Wholesale","index":7,"n_rows":117,"n_cols":16,"rows_kept":117,"cut":false,"hidden":false,"merged":[[12,1,12,12],[19,3,19,5],[19,7,19,9],[19,11,19,13],[38,3,38,5],[38,7,38,9],[38,11,38,13],[96,7,96,9],[96,11,96,13],[20,3,20,5],[20,7,20,9],[20,11,20,13],[96,3,96,5],[95,3,95,5],[95,7,95,9],[95,11,95,13],[57,3,57,5],[57,7,57,9],[57,11,57,13],[76,3,76,5],[76,7,76,9],[76,11,76,13]]}
[]
[]
[]
[]
[]
[]
[]
[]
[]
[]
[]
[]
[null,"The purpose of this sheet is to calculate the expected billing when forecasted 2019 Uniform Transmission Rates are applied against historical 2017 transmission units."]
[]
[]
[]
[]
[]
[]
[null,"IESO",null,"Network",null,null,null,"Line Connection",null,null,null,"Transformation Connection",null,null,null,"Total Line"]
[]
[null,"Month",null,"Units Billed","Rate","Amount",null,"Units Billed","Rate","Amount",null,"Units Billed","Rate","Amount",null,"Amount"]
[]
[null,"January",null,{"$f":"'6. Historical Wholesale'!D24","v":29621},{"$f":"'5. UTRs and Sub-Transmission'!J22","v":3.61},{"$f":"D24*E24","v":106931.81},null,{"$f":"'6. Historical Wholesale'!H24","v":30466},{"$f":"'5. UTRs and Sub-Transmission'!J24","v":0.95},{"$f":"H24*I24","v":28942.699999999997},null,{"$f":"'6. Historical Wholesale'!L24","v":0},{"$f":"'5. UTRs and Sub-Transmission'!J26","v":2.34},{"$f":"L24*M24","v":0},null,{"$f":"J24+N24","v":28942.699999999997}]
[null,"February",null,{"$f":"'6. Historical Wholesale'!D25","v":28431},{"$f":"E24","v":3.61},102635.91,null,{"$f":"'6. Historical Wholesale'!H25","v":29064},{"$f":"I24","v":0.95},27610.799999999999,null,{"$f":"'6. Historical Wholesale'!L25","v":0},{"$f":"M24","v":2.34},0,null,27610.799999999999]
[null,"March",null,{"$f":"'6. Historical Wholesale'!D26","v":25727},3.61,92874.47,null,{"$f":"'6. Historical Wholesale'!H26","v":28350},0.95,26932.5,null,{"$f":"'6. Historical Wholesale'!L26","v":0},2.34,0,null,26932.5]
[null,"April",null,{"$f":"'6. Historical Wholesale'!D27","v":23482},3.61,84770.02,null,{"$f":"'6. Historical Wholesale'!H27","v":25708},0.95,24422.6,null,{"$f":"'6. Historical Wholesale'!L27","v":0},2.34,0,null,24422.6]
[null,"May",null,{"$f":"'6. Historical Wholesale'!D28","v":28884},3.61,104271.23999999999,null,{"$f":"'6. Historical Wholesale'!H28","v":29333},0.95,27866.35,null,{"$f":"'6. Historical Wholesale'!L28","v":0},2.34,0,null,27866.35]
[null,"June",null,{"$f":"'6. Historical Wholesale'!D29","v":33800},3.61,122018,null,{"$f":"'6. Historical Wholesale'!H29","v":37569},0.95,35690.549999999996,null,{"$f":"'6. Historical Wholesale'!L29","v":0},2.34,0,null,35690.549999999996]
[null,"July",null,{"$f":"'6. Historical Wholesale'!D30","v":38152},3.61,137728.72,null,{"$f":"'6. Historical Wholesale'!H30","v":39199},0.95,37239.049999999996,null,{"$f":"'6. Historical Wholesale'!L30","v":0},2.34,0,null,37239.049999999996]
[null,"August",null,{"$f":"'6. Historical Wholesale'!D31","v":39158},3.61,141360.38,null,{"$f":"'6. Historical Wholesale'!H31","v":39414},0.95,37443.299999999996,null,{"$f":"'6. Historical Wholesale'!L31","v":0},2.34,0,null,37443.299999999996]
[null,"September",null,{"$f":"'6. Historical Wholesale'!D32","v":37381},3.61,134945.41,null,{"$f":"'6. Historical Wholesale'!H32","v":39910},0.95,37914.5,null,{"$f":"'6. Historical Wholesale'!L32","v":0},2.34,0,null,37914.5]
[null,"October",null,{"$f":"'6. Historical Wholesale'!D33","v":26658},3.61,96235.37999999999,null,{"$f":"'6. Historical Wholesale'!H33","v":28019},0.95,26618.05,null,{"$f":"'6. Historical Wholesale'!L33","v":0},2.34,0,null,26618.05]
[null,"November",null,{"$f":"'6. Historical Wholesale'!D34","v":25655},3.61,92614.55,null,{"$f":"'6. Historical Wholesale'!H34","v":27774},0.95,26385.3,null,{"$f":"'6. Historical Wholesale'!L34","v":0},2.34,0,null,26385.3]
[null,"December",null,{"$f":"'6. Historical Wholesale'!D35","v":30952},3.61,111736.72,null,{"$f":"'6. Historical Wholesale'!H35","v":32517},0.95,30891.149999999998,null,{"$f":"'6. Historical Wholesale'!L35","v":0},2.34,0,null,30891.149999999998]
[]
[null,"Total",null,{"$f":"SUM(D24:D35)","v":367901},{"$f":"IF(D37<>0,F37/D37,0)","v":3.6099999999999994},{"$f":"SUM(F24:F35)","v":1328122.6099999999},null,{"$f":"SUM(H24:H35)","v":387323},{"$f":"IF(H37<>0,J37/H37,0)","v":0.95},{"$f":"SUM(J24:J35)","v":367956.85},null,{"$f":"SUM(L24:L35)","v":0},{"$f":"IF(L37<>0,N37/L37,0)","v":0},{"$f":"SUM(N24:N35)","v":0},null,{"$f":"SUM(P24:P35)","v":367956.85}]
[]
[null,"Hydro One",null,"Network",null,null,null,"Line Connection",null,null,null,"Transformation Connection",null,null,null,"Total Line"]
[]
[null,"Month",null,"Units Billed","Rate","Amount",null,"Units Billed","Rate","Amount",null,"Units Billed","Rate","Amount",null,"Amount"]
[]
[null,"January",null,{"$f":"'6. Historical Wholesale'!D43","v":0},{"$f":"'5. UTRs and Sub-Transmission'!J36","v":0},{"$f":"D43*E43","v":0},null,{"$f":"'6. Historical Wholesale'!H43","v":0},{"$f":"'5. UTRs and Sub-Transmission'!J38","v":0},{"$f":"H43*I43","v":0},null,{"$f":"'6. Historical Wholesale'!L43","v":0},{"$f":"'5. UTRs and Sub-Transmission'!J40","v":0},{"$f":"L43*M43","v":0},null,{"$f":"J43+N43","v":0}]
[null,"February",null,{"$f":"'6. Historical Wholesale'!D44","v":0},{"$f":"E43","v":0},0,null,{"$f":"'6. Historical Wholesale'!H44","v":0},{"$f":"I43","v":0},0,null,{"$f":"'6. Historical Wholesale'!L44","v":0},{"$f":"M43","v":0},0,null,0]
[null,"March",null,{"$f":"'6. Historical Wholesale'!D45","v":0},0,0,null,{"$f":"'6. Historical Wholesale'!H45","v":0},0,0,null,{"$f":"'6. Historical Wholesale'!L45","v":0},0,0,null,0]
[null,"April",null,{"$f":"'6. Historical Wholesale'!D46","v":0},0,0,null,{"$f":"'6. Historical Wholesale'!H46","v":0},0,0,null,{"$f":"'6. Historical Wholesale'!L46","v":0},0,0,null,0]
[null,"May",null,{"$f":"'6. Historical Wholesale'!D47","v":0},0,0,null,{"$f":"'6. Historical Wholesale'!H47","v":0},0,0,null,{"$f":"'6. Historical Wholesale'!L47","v":0},0,0,null,0]
[null,"June",null,{"$f":"'6. Historical Wholesale'!D48","v":0},0,0,null,{"$f":"'6. Historical Wholesale'!H48","v":0},0,0,null,{"$f":"'6. Historical Wholesale'!L48","v":0},0,0,null,0]
[null,"July",null,{"$f":"'6. Historical Wholesale'!D49","v":0},0,0,null,{"$f":"'6. Historical Wholesale'!H49","v":0},0,0,null,{"$f":"'6. Historical Wholesale'!L49","v":0},0,0,null,0]
[null,"August",null,{"$f":"'6. Historical Wholesale'!D50","v":0},0,0,null,{"$f":"'6. Historical Wholesale'!H50","v":0},0,0,null,{"$f":"'6. Historical Wholesale'!L50","v":0},0,0,null,0]
[null,"September",null,{"$f":"'6. Historical Wholesale'!D51","v":0},0,0,null,{"$f":"'6. Historical Wholesale'!H51","v":0},0,0,null,{"$f":"'6. Historical Wholesale'!L51","v":0},0,0,null,0]
[null,"October",null,{"$f":"'6. Historical Wholesale'!D52","v":0},0,0,null,{"$f":"'6. Historical Wholesale'!H52","v":0},0,0,null,{"$f":"'6. Historical Wholesale'!L52","v":0},0,0,null,0]
[null,"November",null,{"$f":"'6. Historical Wholesale'!D53","v":0},0,0,null,{"$f":"'6. Historical Wholesale'!H53","v":0},0,0,null,{"$f":"'6. Historical Wholesale'!L53","v":0},0,0,null,0]
[null,"December",null,{"$f":"'6. Historical Wholesale'!D54","v":0},0,0,null,{"$f":"'6. Historical Wholesale'!H54","v":0},0,0,null,{"$f":"'6. Historical Wholesale'!L54","v":0},0,0,null,0]
[]
[null,"Total",null,{"$f":"SUM(D43:D54)","v":0},{"$f":"IF(D56<>0,F56/D56,0)","v":0},{"$f":"SUM(F43:F54)","v":0},null,{"$f":"SUM(H43:H54)","v":0},{"$f":"IF(H56<>0,J56/H56,0)","v":0},{"$f":"SUM(J43:J54)","v":0},null,{"$f":"SUM(L43:L54)","v":0},{"$f":"IF(L56<>0,N56/L56,0)","v":0},{"$f":"SUM(N43:N54)","v":0},null,{"$f":"SUM(P43:P54)","v":0}]
[]
[null,{"$f":"'6. Historical Wholesale'!B58","v":"Add Extra Host Here (I)"},null,"Network",null,null,null,"Line Connection",null,null,null,"Transformation Connection",null,null,null,"Total Line"]
[]
[null,"Month",null,"Units Billed","Rate","Amount",null,"Units Billed","Rate","Amount",null,"Units Billed","Rate","Amount",null,"Amount"]
[]
[null,"January",null,{"$f":"'6. Historical Wholesale'!D62","v":0},{"$f":"'5. UTRs and Sub-Transmission'!J51","v":0},{"$f":"D62*E62","v":0},null,{"$f":"'6. Historical Wholesale'!H62","v":0},{"$f":"'5. UTRs and Sub-Transmission'!J53","v":0},{"$f":"H62*I62","v":0},null,{"$f":"'6. Historical Wholesale'!L62","v":0},{"$f":"'5. UTRs and Sub-Transmission'!J55","v":0},{"$f":"L62*M62","v":0},null,{"$f":"J62+N62","v":0}]
[null,"February",null,{"$f":"'6. Historical Wholesale'!D63","v":0},{"$f":"E62","v":0},0,null,{"$f":"'6. Historical Wholesale'!H63","v":0},{"$f":"I62","v":0},0,null,{"$f":"'6. Historical Wholesale'!L63","v":0},{"$f":"M62","v":0},0,null,0]
[null,"March",null,{"$f":"'6. Historical Wholesale'!D64","v":0},0,0,null,{"$f":"'6. Historical Wholesale'!H64","v":0},0,0,null,{"$f":"'6. Historical Wholesale'!L64","v":0},0,0,null,0]
[null,"April",null,{"$f":"'6. Historical Wholesale'!D65","v":0},0,0,null,{"$f":"'6. Historical Wholesale'!H65","v":0},0,0,null,{"$f":"'6. Historical Wholesale'!L65","v":0},0,0,null,0]
[null,"May",null,{"$f":"'6. Historical Wholesale'!D66","v":0},0,0,null,{"$f":"'6. Historical Wholesale'!H66","v":0},0,0,null,{"$f":"'6. Historical Wholesale'!L66","v":0},0,0,null,0]
[null,"June",null,{"$f":"'6. Historical Wholesale'!D67","v":0},0,0,null,{"$f":"'6. Historical Wholesale'!H67","v":0},0,0,null,{"$f":"'6. Historical Wholesale'!L67","v":0},0,0,null,0]
[null,"July",null,{"$f":"'6. Historical Wholesale'!D68","v":0},0,0,null,{"$f":"'6. Historical Wholesale'!H68","v":0},0,0,null,{"$f":"'6. Historical Wholesale'!L68","v":0},0,0,null,0]
[null,"August",null,{"$f":"'6. Historical Wholesale'!D69","v":0},0,0,null,{"$f":"'6. Historical Wholesale'!H69","v":0},0,0,null,{"$f":"'6. Historical Wholesale'!L69","v":0},0,0,null,0]
[null,"September",null,{"$f":"'6. Historical Wholesale'!D70","v":0},0,0,null,{"$f":"'6. Historical Wholesale'!H70","v":0},0,0,null,{"$f":"'6. Historical Wholesale'!L70","v":0},0,0,null,0]
[null,"October",null,{"$f":"'6. Historical Wholesale'!D71","v":0},0,0,null,{"$f":"'6. Historical Wholesale'!H71","v":0},0,0,null,{"$f":"'6. Historical Wholesale'!L71","v":0},0,0,null,0]
[null,"November",null,{"$f":"'6. Historical Wholesale'!D72","v":0},0,0,null,{"$f":"'6. Historical Wholesale'!H72","v":0},0,0,null,{"$f":"'6. Historical Wholesale'!L72","v":0},0,0,null,0]
[null,"December",null,{"$f":"'6. Historical Wholesale'!D73","v":0},0,0,null,{"$f":"'6. Historical Wholesale'!H73","v":0},0,0,null,{"$f":"'6. Historical Wholesale'!L73","v":0},0,0,null,0]
[]
[null,"Total",null,{"$f":"SUM(D62:D73)","v":0},{"$f":"IF(D75<>0,F75/D75,0)","v":0},{"$f":"SUM(F62:F73)","v":0},null,{"$f":"SUM(H62:H73)","v":0},{"$f":"IF(H75<>0,J75/H75,0)","v":0},{"$f":"SUM(J62:J73)","v":0},null,{"$f":"SUM(L62:L73)","v":0},{"$f":"IF(L75<>0,N75/L75,0)","v":0},{"$f":"SUM(N62:N73)","v":0},null,{"$f":"SUM(P62:P73)","v":0}]
[]
[null,{"$f":"'6. Historical Wholesale'!B77","v":"Add Extra Host Here (II)"},null,"Network",null,null,null,"Line Connection",null,null,null,"Transformation Connection",null,null,null,"Total Line"]
[]
[null,"Month",null,"Units Billed","Rate","Amount",null,"Units Billed","Rate","Amount",null,"Units Billed","Rate","Amount",null,"Amount"]
[]
[null,"January",null,{"$f":"'6. Historical Wholesale'!D81","v":0},{"$f":"'5. UTRs and Sub-Transmission'!J66","v":0},{"$f":"D81*E81","v":0},null,{"$f":"'6. Historical Wholesale'!H81","v":0},{"$f":"'5. UTRs and Sub-Transmission'!J68","v":0},{"$f":"H81*I81","v":0},null,{"$f":"'6. Historical Wholesale'!L81","v":0},{"$f":"'5. UTRs and Sub-Transmission'!J70","v":0},{"$f":"L81*M81","v":0},null,{"$f":"J81+N81","v":0}]
[null,"February",null,{"$f":"'6. Historical Wholesale'!D82","v":0},{"$f":"E81","v":0},0,null,{"$f":"'6. Historical Wholesale'!H82","v":0},{"$f":"I81","v":0},0,null,{"$f":"'6. Historical Wholesale'!L82","v":0},{"$f":"M81","v":0},0,null,0]
[null,"March",null,{"$f":"'6. Historical Wholesale'!D83","v":0},0,0,null,{"$f":"'6. Historical Wholesale'!H83","v":0},0,0,null,{"$f":"'6. Historical Wholesale'!L83","v":0},0,0,null,0]
[null,"April",null,{"$f":"'6. Historical Wholesale'!D84","v":0},0,0,null,{"$f":"'6. Historical Wholesale'!H84","v":0},0,0,null,{"$f":"'6. Historical Wholesale'!L84","v":0},0,0,null,0]
[null,"May",null,{"$f":"'6. Historical Wholesale'!D85","v":0},0,0,null,{"$f":"'6. Historical Wholesale'!H85","v":0},0,0,null,{"$f":"'6. Historical Wholesale'!L85","v":0},0,0,null,0]
[null,"June",null,{"$f":"'6. Historical Wholesale'!D86","v":0},0,0,null,{"$f":"'6. Historical Wholesale'!H86","v":0},0,0,null,{"$f":"'6. Historical Wholesale'!L86","v":0},0,0,null,0]
[null,"July",null,{"$f":"'6. Historical Wholesale'!D87","v":0},0,0,null,{"$f":"'6. Historical Wholesale'!H87","v":0},0,0,null,{"$f":"'6. Historical Wholesale'!L87","v":0},0,0,null,0]
[null,"August",null,{"$f":"'6. Historical Wholesale'!D88","v":0},0,0,null,{"$f":"'6. Historical Wholesale'!H88","v":0},0,0,null,{"$f":"'6. Historical Wholesale'!L88","v":0},0,0,null,0]
[null,"September",null,{"$f":"'6. Historical Wholesale'!D89","v":0},0,0,null,{"$f":"'6. Historical Wholesale'!H89","v":0},0,0,null,{"$f":"'6. Historical Wholesale'!L89","v":0},0,0,null,0]
[null,"October",null,{"$f":"'6. Historical Wholesale'!D90","v":0},0,0,null,{"$f":"'6. Historical Wholesale'!H90","v":0},0,0,null,{"$f":"'6. Historical Wholesale'!L90","v":0},0,0,null,0]
[null,"November",null,{"$f":"'6. Historical Wholesale'!D91","v":0},0,0,null,{"$f":"'6. Historical Wholesale'!H91","v":0},0,0,null,{"$f":"'6. Historical Wholesale'!L91","v":0},0,0,null,0]
[null,"December",null,{"$f":"'6. Historical Wholesale'!D92","v":0},0,0,null,{"$f":"'6. Historical Wholesale'!H92","v":0},0,0,null,{"$f":"'6. Historical Wholesale'!L92","v":0},0,0,null,0]
[]
[null,"Total",null,{"$f":"SUM(D81:D92)","v":0},{"$f":"IF(D94<>0,F94/D94,0)","v":0},{"$f":"SUM(F81:F92)","v":0},null,{"$f":"SUM(H81:H92)","v":0},{"$f":"IF(H94<>0,J94/H94,0)","v":0},{"$f":"SUM(J81:J92)","v":0},null,{"$f":"SUM(L81:L92)","v":0},{"$f":"IF(L94<>0,N94/L94,0)","v":0},{"$f":"SUM(N81:N92)","v":0},null,{"$f":"SUM(P81:P92)","v":0}]
[]
[null,"Total",null,"Network",null,null,null,"Line Connection",null,null,null,"Transformation Connection",null,null,null,"Total Line"]
[]
[null,"Month",null,"Units Billed","Rate","Amount",null,"Units Billed","Rate","Amount",null,"Units Billed","Rate","Amount",null,"Amount"]
[]
[null,"January",null,{"$f":"D24+D43+D62+D81","v":29621},{"$f":"IF(D100<>0,F100/D100,0)","v":3.61},{"$f":"F24+F43+F62+F81","v":106931.81},null,{"$f":"H24+H43+H62+H81","v":30466},{"$f":"IF(H100<>0,J100/H100,0)","v":0.95},{"$f":"J24+J43+J62+J81","v":28942.699999999997},null,{"$f":"L24+L43+L62+L81","v":0},{"$f":"IF(L100<>0,N100/L100,0)","v":0},{"$f":"N24+N43+N62+N81","v":0},null,{"$f":"J100+N100","v":28942.699999999997}]
[null,"February",null,{"$f":"D25+D44+D63+D82","v":28431},3.6100000000000003,102635.91,null,{"$f":"H25+H44+H63+H82","v":29064},0.95,{"$f":"J25+J44+J63+J82","v":27610.799999999999},null,{"$f":"L25+L44+L63+L82","v":0},0,{"$f":"N25+N44+N63+N82","v":0},null,27610.799999999999]
[null,"March",null,25727,3.61,92874.47,null,{"$f":"H26+H45+H64+H83","v":28350},0.95,{"$f":"J26+J45+J64+J83","v":26932.5},null,{"$f":"L26+L45+L64+L83","v":0},0,{"$f":"N26+N45+N64+N83","v":0},null,26932.5]
[null,"April",null,23482,3.6100000000000003,84770.02,null,{"$f":"H27+H46+H65+H84","v":25708},0.95,{"$f":"J27+J46+J65+J84","v":24422.6},null,{"$f":"L27+L46+L65+L84","v":0},0,{"$f":"N27+N46+N65+N84","v":0},null,24422.6]
[null,"May",null,28884,3.61,104271.23999999999,null,{"$f":"H28+H47+H66+H85","v":29333},0.95,{"$f":"J28+J47+J66+J85","v":27866.35},null,{"$f":"L28+L47+L66+L85","v":0},0,{"$f":"N28+N47+N66+N85","v":0},null,27866.35]
[null,"June",null,33800,3.61,122018,null,{"$f":"H29+H48+H67+H86","v":37569},0.94999999999999984,{"$f":"J29+J48+J67+J86","v":35690.549999999996},null,{"$f":"L29+L48+L67+L86","v":0},0,{"$f":"N29+N48+N67+N86","v":0},null,35690.549999999996]
[null,"July",null,38152,3.61,137728.72,null,{"$f":"H30+H49+H68+H87","v":39199},0.94999999999999984,{"$f":"J30+J49+J68+J87","v":37239.049999999996},null,{"$f":"L30+L49+L68+L87","v":0},0,{"$f":"N30+N49+N68+N87","v":0},null,37239.049999999996]
[null,"August",null,39158,3.6100000000000003,141360.38,null,{"$f":"H31+H50+H69+H88","v":39414},0.94999999999999984,{"$f":"J31+J50+J69+J88","v":37443.299999999996},null,{"$f":"L31+L50+L69+L88","v":0},0,{"$f":"N31+N50+N69+N88","v":0},null,37443.299999999996]
[null,"September",null,37381,3.61,134945.41,null,{"$f":"H32+H51+H70+H89","v":39910},0.95,{"$f":"J32+J51+J70+J89","v":37914.5},null,{"$f":"L32+L51+L70+L89","v":0},0,{"$f":"N32+N51+N70+N89","v":0},null,37914.5]
[null,"October",null,26658,3.6099999999999994,96235.37999999999,null,{"$f":"H33+H52+H71+H90","v":28019},0.95,{"$f":"J33+J52+J71+J90","v":26618.05},null,{"$f":"L33+L52+L71+L90","v":0},0,{"$f":"N33+N52+N71+N90","v":0},null,26618.05]
[null,"November",null,25655,3.6100000000000003,92614.55,null,{"$f":"H34+H53+H72+H91","v":27774},0.95,{"$f":"J34+J53+J72+J91","v":26385.3},null,{"$f":"L34+L53+L72+L91","v":0},0,{"$f":"N34+N53+N72+N91","v":0},null,26385.3]
[null,"December",null,30952,3.61,111736.72,null,{"$f":"H35+H54+H73+H92","v":32517},0.95,{"$f":"J35+J54+J73+J92","v":30891.149999999998},null,{"$f":"L35+L54+L73+L92","v":0},0,{"$f":"N35+N54+N73+N92","v":0},null,30891.149999999998]
[]
[null,"Total",null,{"$f":"SUM(D100:D111)","v":367901},{"$f":"IF(D113<>0,F113/D113,0)","v":3.6099999999999994},{"$f":"SUM(F100:F111)","v":1328122.6099999999},null,{"$f":"SUM(H100:H111)","v":387323},{"$f":"IF(H113<>0,J113/H113,0)","v":0.95},{"$f":"SUM(J100:J111)","v":367956.85},null,{"$f":"SUM(L100:L111)","v":0},{"$f":"IF(L113<>0,N113/L113,0)","v":0},{"$f":"SUM(N100:N111)","v":0},null,{"$f":"SUM(P100:P111)","v":367956.85}]
[]
[null,null,null,null,null,null,null,null,null,null,null,null,null,"Low Voltage Switchgear Credit (if applicable)",null,{"$f":"'5. UTRs and Sub-Transmission'!J75","v":0}]
[]
[null,null,null,null,null,null,null,null,null,null,null,null,null,"Total including deduction for Low Voltage Switchgear Credit",null,{"$f":"P113+P115","v":367956.85}]

{"sheet":"9. RTSR Rates to Forecast","index":8,"n_rows":52,"n_cols":10,"rows_kept":52,"cut":false,"hidden":false,"merged":[]}
[]
[]
[]
[]
[]
[]
[]
[]
[]
[]
[]
[]
["The purpose of this sheet is to re-align the current RTS Network Rates to recover current wholesale network costs."]
[]
["Rate Class","Rate Description","Unit","Current RTSR-Network","Loss Adjusted Billed kWh","Billed kW","Billed Amount","Billed Amount %","Current Wholesale Billing","Adjusted RTSR Network"]
[]
["Residential","RTSR - Network","kWh",7.1000000000000004E-3,73708854.216940001,null,{"$f":"ROUND(D17*E17, 2)","v":523332.86},{"$f":"G17/1385205.71","v":0.37780154689082246},{"$f":"H17*total_current_wholesale_network","v":501766.77651867649},{"$f":"IF(ISERROR(I17/E17), 0, I17/E17)","v":6.8074152264241666E-3}]
["General Service Less Than 50 kW","RTSR - Network","kWh",6.4999999999999997E-3,42276847.229390003,null,{"$f":"ROUND(D18*E18, 2)","v":274799.51},0.1983817334971858,263475.26566860679,{"$f":"IF(ISERROR(I18/E18), 0, I18/E18)","v":6.2321408273189336E-3}]
["General Service 50 to 4,999 kW","RTSR - Network","kW",2.641,null,122962.26,{"$f":"ROUND(D19*F19, 2)","v":324743.33},0.2344368981846025,311360.94509723852,{"$f":"IF(ISERROR(I19/F19), 0, I19/F19)","v":2.5321667404066788}]
["General Service 50 to 4,999 kW – Interval Metered","RTSR - Network","kW",2.8542999999999998,null,89639.54,{"$f":"ROUND(D20*F20, 2)","v":255858.14},0.1847076850412348,245314.45274402271,{"$f":"IF(ISERROR(I20/F20), 0, I20/F20)","v":2.7366768364052598}]
["Unmetered Scattered Load","RTSR - Network","kWh",6.4999999999999997E-3,260263.18126000001,null,{"$f":"ROUND(D21*E21, 2)","v":1691.71},1.221269871895056E-3,1621.9961297756272,{"$f":"IF(ISERROR(I21/E21), 0, I21/E21)","v":6.232138260675724E-3}]
["Street Lighting","RTSR - Network","kW",1.9914000000000001,null,2400.4,{"$f":"ROUND(D22*F22, 2)","v":4780.16},3.4508665142594596E-3,4583.1738416798753,{"$f":"IF(ISERROR(I22/F22), 0, I22/F22)","v":1.9093375444425409}]
[]
["The purpose of this table is to re-align the current RTS Connection Rates to recover current wholesale connection costs."]
["Rate Class","Rate Description","Unit","Current RTSR-Connection","Loss Adjusted Billed kWh","Billed kW","Billed Amount","Billed Amount %","Current Wholesale Billing","Adjusted RTSR-Connection"]
[]
["Residential","RTSR - Connection","kWh",1.6999999999999999E-3,73708854.216940001,null,{"$f":"ROUND(D27*E27, 2)","v":125305.05},{"$f":"G27/389641.92","v":0.32159026934268264},{"$f":"H27*Total_Current_Wholesale_Lineplus","v":118331.34249798507},{"$f":"IF(ISERROR(I27/E27), 0, I27/E27)","v":1.6053884401691022E-3}]
["General Service Less Than 50 kW","RTSR - Connection","kWh",1.6999999999999999E-3,42276847.229390003,null,{"$f":"ROUND(D28*E28, 2)","v":71870.64},0.18445304858368422,67870.762729749404,{"$f":"IF(ISERROR(I28/E28), 0, I28/E28)","v":1.6053884614784385E-3}]
["General Service 50 to 4,999 kW","RTSR - Connection","kW",0.56410000000000005,null,122962.26,{"$f":"ROUND(D29*F29, 2)","v":69363.009999999995},0.17801731908106808,65502.691974514702,{"$f":"IF(ISERROR(I29/F29), 0, I29/F29)","v":0.53270566086305426}]
["General Service 50 to 4,999 kW – Interval Metered","RTSR - Connection","kW",1.3567,null,89639.54,{"$f":"ROUND(D30*F30, 2)","v":121613.96},0.31211723830947147,114845.67583905243,{"$f":"IF(ISERROR(I30/F30), 0, I30/F30)","v":1.2811943907683199}]
["Unmetered Scattered Load","RTSR - Connection","kWh",1.6999999999999999E-3,260263.18126000001,null,{"$f":"ROUND(D31*E31, 2)","v":442.45},1.1355297705133987E-3,417.82595743933302,{"$f":"IF(ISERROR(I31/E31), 0, I31/E31)","v":1.6053978723249739E-3}]
["Street Lighting","RTSR - Connection","kW",0.43609999999999999,null,2400.4,{"$f":"ROUND(D32*F32, 2)","v":1046.81},2.686594912580248E-3,988.55100125905335,{"$f":"IF(ISERROR(I32/F32), 0, I32/F32)","v":0.411827612589174}]
[]
["The purpose of this table is to update the re-aligned RTS Network Rates to recover future wholesale network costs."]
["Rate Class","Rate Description","Unit","Adjusted RTSR-Network","Loss Adjusted Billed kWh","Billed kW","Billed Amount","Billed Amount %","Current Wholesale Billing","Proposed RTSR-Network"]
[]
["Residential","RTSR - Network","kWh",6.8074152264241666E-3,73708854.216940001,null,{"$f":"IF(ISERROR(D37*E37), 0, ROUND(D37*E37, 2))","v":501766.78},{"$f":"G37/1328122.62","v":0.37780154666743043},{"$f":"H37*forecast_wholesale_network","v":501766.77622198447},{"$f":"IF(ISERROR(I37/E37), 0, I37/E37)","v":6.8074152223989784E-3}]
["General Service Less Than 50 kW","RTSR - Network","kWh",6.2321408273189336E-3,42276847.229390003,null,{"$f":"IF(ISERROR(D38*E38), 0, ROUND(D38*E38, 2))","v":263475.27},0.19838173526477548,263475.26801618264,{"$f":"IF(ISERROR(I38/E38), 0, I38/E38)","v":6.2321408828475743E-3}]
["General Service 50 to 4,999 kW","RTSR - Network","kW",2.5321667404066788,null,122962.26,{"$f":"ROUND(D39*F39, 2)","v":311360.95},0.234436900110925,311360.94765563094,{"$f":"IF(ISERROR(I39/F39), 0, I39/F39)","v":2.5321667612130012}]
["General Service 50 to 4,999 kW – Interval Metered","RTSR - Network","kW",2.7366768364052598,null,89639.54,{"$f":"ROUND(D40*F40, 2)","v":245314.45},0.18470768158440068,245314.44815292314,{"$f":"IF(ISERROR(I40/F40), 0, I40/F40)","v":2.7366767851879112}]
["Unmetered Scattered Load","RTSR - Network","kWh",6.232138260675724E-3,260263.18126000001,null,{"$f":"IF(ISERROR(D41*E41), 0, ROUND(D41*E41, 2))","v":1622},1.22127277675611E-3,1621.9999877872719,{"$f":"IF(ISERROR(I41/E41), 0, I41/E41)","v":6.2321530841771737E-3}]
["Street Lighting","RTSR - Network","kW",1.9093375444425409,null,2400.4,{"$f":"ROUND(D42*F42, 2)","v":4583.17},3.4508635957122692E-3,4583.1699654913637,{"$f":"IF(ISERROR(I42/F42), 0, I42/F42)","v":1.9093359296331294}]
[]
["The purpose of this table is to update the re-aligned RTS Connection Rates to recover future wholesale connection costs."]
["Rate Class","Rate Description","Unit","Adjusted RTSR-Connection","Loss Adjusted Billed kWh","Billed kW","Billed Amount","Billed Amount %","Current Wholesale Billing","Proposed RTSR-Connection"]
[]
["Residential","RTSR - Connection","kWh",1.6053884401691022E-3,73708854.216940001,null,{"$f":"ROUND(D47*E47, 2)","v":118331.34},{"$f":"G47/367956.85","v":0.32159026255388373},{"$f":"H47*forecast_wholesale_lineplus","v":118331.34000000001},{"$f":"IF(ISERROR(I47/E47), 0, I47/E47)","v":1.6053884062792111E-3}]
["General Service Less Than 50 kW","RTSR - Connection","kWh",1.6053884614784385E-3,42276847.229390003,null,{"$f":"ROUND(D48*E48, 2)","v":67870.759999999995},0.18445304116501704,67870.759999999995,{"$f":"IF(ISERROR(I48/E48), 0, I48/E48)","v":1.6053883969100143E-3}]
["General Service 50 to 4,999 kW","RTSR - Connection","kW",0.53270566086305426,null,122962.26,{"$f":"ROUND(D49*F49, 2)","v":65502.69},0.17801731371490981,65502.69000000001,{"$f":"IF(ISERROR(I49/F49), 0, I49/F49)","v":0.53270564480516225}]
["General Service 50 to 4,999 kW – Interval Metered","RTSR - Connection","kW",1.2811943907683199,null,89639.54,{"$f":"ROUND(D50*F50, 2)","v":114845.68},0.31211724961772014,114845.68,{"$f":"IF(ISERROR(I50/F50), 0, I50/F50)","v":1.2811944371869826}]
["Unmetered Scattered Load","RTSR - Connection","kWh",1.6053978723249739E-3,260263.18126000001,null,{"$f":"ROUND(D51*E51, 2)","v":417.83},1.1355407570208301E-3,417.83,{"$f":"IF(ISERROR(I51/E51), 0, I51/E51)","v":1.605413404912593E-3}]
["Street Lighting","RTSR - Connection","kW",0.411827612589174,null,2400.4,{"$f":"ROUND(D52*F52, 2)","v":988.55},2.6865921914485352E-3,988.54999999999984,{"$f":"IF(ISERROR(I52/F52), 0, I52/F52)","v":0.41182719546742202}]

{"sheet":"hidden1","index":9,"n_rows":22,"n_cols":2,"rows_kept":22,"cut":false,"hidden":true,"merged":[]}
[{"$f":"IF('3. Rate Classes'!L17=1, '3. Rate Classes'!C17, \"\")","v":"Residential"},1]
[{"$f":"IF('3. Rate Classes'!L18=1, '3. Rate Classes'!C18, \"\")","v":"General Service Less Than 50 kW"},2]
[{"$f":"IF('3. Rate Classes'!L19=1, '3. Rate Classes'!C19, \"\")","v":"General Service 50 to 4,999 kW"},3]
[{"$f":"IF('3. Rate Classes'!L20=1, '3. Rate Classes'!C20, \"\")","v":"General Service 50 to 4,999 kW – Interval Metered"},4]
[{"$f":"IF('3. Rate Classes'!L21=1, '3. Rate Classes'!C21, \"\")","v":"Unmetered Scattered Load"},5]
[{"$f":"IF('3. Rate Classes'!L22=1, '3. Rate Classes'!C22, \"\")","v":"Street Lighting"},6]
[{"$f":"IF('3. Rate Classes'!L23=1, '3. Rate Classes'!C23, \"\")","v":""},7]
[{"$f":"IF('3. Rate Classes'!L24=1, '3. Rate Classes'!C24, \"\")","v":""},8]
[{"$f":"IF('3. Rate Classes'!L25=1, '3. Rate Classes'!C25, \"\")","v":""},9]
[{"$f":"IF('3. Rate Classes'!L26=1, '3. Rate Classes'!C26, \"\")","v":""},10]
[{"$f":"IF('3. Rate Classes'!L27=1, '3. Rate Classes'!C27, \"\")","v":""},11]
[{"$f":"IF('3. Rate Classes'!L28=1, '3. Rate Classes'!C28, \"\")","v":""},12]
[{"$f":"IF('3. Rate Classes'!L29=1, '3. Rate Classes'!C29, \"\")","v":""},13]
[{"$f":"IF('3. Rate Classes'!L30=1, '3. Rate Classes'!C30, \"\")","v":""},14]
[{"$f":"IF('3. Rate Classes'!L31=1, '3. Rate Classes'!C31, \"\")","v":""},15]
[{"$f":"IF('3. Rate Classes'!L32=1, '3. Rate Classes'!C32, \"\")","v":""},16]
[{"$f":"IF('3. Rate Classes'!L33=1, '3. Rate Classes'!C33, \"\")","v":""},17]
[{"$f":"IF('3. Rate Classes'!L34=1, '3. Rate Classes'!C34, \"\")","v":""},18]
[{"$f":"IF('3. Rate Classes'!L35=1, '3. Rate Classes'!C35, \"\")","v":""},19]
[{"$f":"IF('3. Rate Classes'!L36=1, '3. Rate Classes'!C36, \"\")","v":""},20]
[{"$f":"IF('3. Rate Classes'!L37=1, '3. Rate Classes'!C37, \"\")","v":""},21]
[{"$f":"IF('3. Rate Classes'!L38=1, '3. Rate Classes'!C38, \"\")","v":""},22]